{"text_format":"1","workbook":"xlsx","n_sheets":33,"sheets":["Instructions","GSNSW Codes","General Information","Drillhole Locations (SL4)","Drillhole Surveys (DS4)","Logging Data Dictionary (LDD4)","Drillhole Logging (DL4)","Drillhole Alteration","Drillhole Mag Susc","Drillhole Vein","Drillhole Recovery","Drillhole Weathering","Drillhole Other","Drillhole Geochemistry (DG4)","Surface Geochemistry (SG4)","XRF Surface Geochem (SG4_PXRF)","XRF Downhole Geochem (DG4_PXRF)","Lookups","FileNames","SL4Print","DS4Print","LDD4Print","DL4Print","DL4aPrint","DL4bPrint","DL4cPrint","DL4dPrint","DL4ePrint","DL4fPrint","DG4Print","SG4Print","SG4_PXRFPrint","DG4_PXRFPrint"],"not_rendered":{"charts":0,"images":19,"macros":1,"external_links":0,"defined_names":16,"comments":8,"pivot_tables":0},"unopened":[],"bounds":{"document_bytes":16777216,"sheet_cells":100000,"rows_first":2000,"rows_last":500,"rows_between":2000,"halvings":0,"cell_chars":16384,"cell_head_chars":4096},"cells_cut":0,"cells_raw":0,"read":"whole","date_system":"1900"}

{"sheet":"Instructions","index":0,"n_rows":124,"n_cols":3,"rows_kept":124,"cut":false,"hidden":false,"merged":[[123,1,123,11],[109,1,109,11],[92,2,92,11],[93,2,93,11],[95,2,95,10],[96,2,96,10],[97,2,97,11],[99,2,99,11],[1,1,1,12],[38,1,38,11],[80,1,80,11],[81,1,81,11],[83,1,83,11],[3,1,3,11],[5,1,5,11],[9,1,9,11],[13,1,13,11],[17,1,17,10],[79,1,79,11]]}
[]
[null,"INSTRUCTIONS"]
[]
[]
[]
[null,"Template overview:"]
[]
[null,"Navigation"]
[]
[null,"The template will initially display three worksheets when opened (General information, Instructions and GSNSW Codes). Additional worksheets will be generated to reflect each type of data being submitted when the ‘General information’ worksheet is filled in (e.g., additional worksheets will be dynamically generated for drillhole/sample locations, logging, geochemistry and pXRF data as required)."]
[]
[null,"‘General information’ worksheet"]
[]
[null,"The ‘General information’ worksheet is the primary worksheet that is used to generate data worksheets, compile basic sample/drillhole information, and execute functions to validate data and create data files."]
[]
[null,"‘GSNSW Codes’ worksheet"]
[]
[null,"The ‘GSNSW Codes’ worksheet contains all valid codes specified by GSNSW for items where input values should be constrained to a code. Many fields in the template will have a drop-down list to select the appropriate code from this listing."]
[]
[null,"General process:"]
[]
[null,"Preparing data in the template involves 4 key steps, which are explained in further detail in subsequent sections of this guide:"]
[]
[null,"Step 1: General Report Details"]
[null,"On the General Information worksheet begin by filling out the general report details and selecting the required data sheets."]
[]
[]
[]
[]
[]
[]
[]
[]
[]
[]
[]
[]
[null,"Step 2: Additional Data"]
[null,"Within the General Information worksheet complete the meta data information windows for each data type. Please note that drill codes, sample codes, assay codes, etc. need to be defined here before they become available for use in the main data sheets."]
[]
[]
[]
[]
[]
[]
[]
[]
[]
[]
[]
[]
[]
[]
[]
[]
[]
[]
[]
[]
[]
[]
[null,"Step 3: Populate Data Sheets"]
[null,"Next, populate each of the required sheets with the report data."]
[]
[]
[]
[]
[]
[]
[null,"Step 4: Create Data Files"]
[null,"Once complete, click the Validate Data and Make File button to create the data files to be submitted in TMS."]
[]
[]
[]
[]
[]
[]
[]
[null,"Notes for use:"]
[null,"• The codes -9997, -9998, and -9999 are reserved for users to denote specific conditions. For example, -9999 may be used to indicate a non-sufficient sample. Users must document the usage and definitions of these codes in the ‘General Remarks’ section of the sheet."]
[null,"• Mandatory fields are marked with an asterisk(*) and must be populated."]
[null,"• If no information/data exists, leave the cell blank. No symbols should be used (e.g.’ - '), and a zero should not be used as this indicates a value of ‘0’."]
[null,"• At the end of the data, leave the following row blank. Do not use any text to indicate end of data (e.g., ‘EOD’, ‘EOF’, ‘End of Data’)."]
[null,"• Drillhole Logging (DL4) can be used for all types of interval data logged. Using separate templates for each type of logging data is recommended when data is recorded at different depth intervals."]
[null,"• A list of codes is provided on the sheet \"GSNSW Codes\". Many fields will have a drop down list to select the appropriate code."]
[null,"• Do not include any QAQC samples (standards, blanks or duplicates) with surface or drillhole geochemistry results. Assay lab repeats are to be included."]
[null,"• Each data file must be submitted in TMS along with the appropriate exploration (annual/final/relinquishment) report.  "]
[]
[]
[null,"Validation errors - Colours:"]
[null,"Many of the fields utilise Excel's built-in conditional formatting to colour code cells that have incorrect or missing data in them."]
[]
[null,null,"Red = bad values. Eg not per GSNSW codes, wrong number of digits for co-ords, “from” values greater than “to” values, wrong date formats, non-numerical values in depth, out of range Azi etc."]
[null,null,"Green = missing data on a connected sheet. All drillholes in Drillhole Surveys, Drillhole Geochemistry etc must have a corresponding drillhole in the Drillhole Locations sheet (the green one). Likewise all assay and sample codes need to be defined on the General Information sheet."]
[null,null,"Orange = duplicate values that need to be unique (typically Sample IDs)"]
[null,null,"Blue = empty mandatory fields"]
[null,null,"Yellow = character lengths too long. Sample IDs typically have a length of 20 characters, comments limited to 200 characters etc."]
[null,null,"Pink = bad assay values. Typically assay values that are below/above detection limits, or that have non-numeric values. Do not use any symbols or codes in assay values, such as %, NS, LLD etc."]
[]
[null,null,"Due to limitations within Excel, data that is copied and pasted, or cut and pasted, will sometimes overwrite a cell's internal formatting - in effect the entire cell is cut from one location and inserted into the new location, bringing with it any formatting. It can be good practice to only paste values (right click, and choose \"paste values\"). Alternatively, the \"Find & Show Errors\" button can be toggled and will refresh the formatting of the sheet."]
[]
[]
[null,"List of Data Validation Checks Performed:"]
[]
[null,"Tenement Name - must have no spaces, 10 characters or less"]
[null,"Dates - must be in format DD/MM/YYYY"]
[null,"Accuracies - must be numerical, greater than 0"]
[null,"Azimuth unit of measure - Azi_MAG, Azi_UTM, Azi_TRUE values only"]
[null,"Drill, Assay, Sample Codes - per lists on sheet \"GSNSW Codes\""]
[null,"Co-ords - 6/7 characters for projected, and 3/2 characters for geographic. Geographic co-ords must also be in the range of 141 to 153.5 and -29 to -37.5 for lng/lat respectively."]
[null,"Dip/Inclination - must be within -90 to 90"]
[null,"Azimuth - must be within 0 to 360"]
[null,"\"From\" values must be equal to or less than \"To\" values"]
[null,"Hole IDs must have a corresponding drillhole on the SL4 sheet with the same name"]
[null,"Lab Codes must be per list on GSNSW sheet"]
[null,"Many fields have character lengths, too many to list, but most importantly is that Sample IDs are limited to 20 characters."]
[null,"Assay results are checked against upper and lower detection limits."]
[null,"There are also a broad range of checks to ensure numerical fields are properly formatted etc."]
[]
[null,null,"    Certain cells also have a red triangle that will show additional requirements when moused over."]
[]
[]
[null,"General Data Checks:"]
[null,"The \"Find & Show Errors\" button and the \"Validate Data & Make Files\" button also do a series of checks to clean up and format the data. This includes removing leading and trailing spaces, deleting bad characters, replacing < and > symbols, deleting blank lines, and other miscellaneous checks and fixes. For large amounts of data this can take a while to process, especially for slower computers. Expect 5-10s for every 1000 samples."]

{"sheet":"GSNSW Codes","index":1,"n_rows":201,"n_cols":11,"rows_kept":201,"cut":false,"hidden":false,"merged":[[1,1,1,2],[1,4,1,6],[1,8,1,10],[59,14,59,15],[60,14,60,15],[44,1,44,2],[15,1,15,2],[21,1,21,2],[30,1,30,2],[31,1,31,2],[43,1,43,2],[72,14,72,15],[57,8,57,9],[63,8,63,9],[57,1,57,2],[63,1,63,2],[71,14,71,15]]}
[]
[null,"Drill Codes for Sheet SL4",null,null,"Lab Codes for Assays",null,null,null,"Example of Logging Classification for DL4 Sheets"]
[null,"ACORE","Air core",null,"AAECUNK","Australian Atomic Energy Commision","Unknown",null,"Column Type","Column Name","Column Description"]
[null,"AUGER","Auger, mechanical",null,"AALCOB","Australian Assay Laboratories (AAL)","Cobar, NSW",null,"ALTERATION","ALT_MIN","alteration mineral"]
[null,"DD","Diamond drill hole",null,"AALDRAKE","Australian Assay Laboratories (AAL)","Drake, NSW",null,"ALTERATION","ALT_INT","alteration intensity"]
[null,"PCDD","Pre-collared drillhole (various methods) with Diamond core tail.  ",null,"AALORAN","Australian Assay Laboratories (AAL)","Orange, NSW",null,"ALTERATION","ALT_STY","alteration style"]
[null,"PERC","Open hole percussion",null,"AALPER","Australian Assay Laboratories (AAL)","Perth, WA",null,"ALTERATION","ALT_ASS","alteration assemblage"]
[null,"RAB","Rotary air blast hole",null,"AALUNK","Australian Assay Laboratories (AAL)","Unknown",null,"ALTERATION","ALT_ASS_INT","alteration assemblage intensity"]
[null,"RC","Reverse circulation percussion",null,"ABERUNK","Aberfoyle Laboratory","Unknown",null,"ALTERATION","ALT_ASS_STY","alteration assemblage style"]
[null,"RTM","Rotary mud",null,"ACIRSYD","Australian Coal Industries Research Labs","Sydney, NSW",null,"COLOUR","COL","rock colour"]
[null,"UNK","Unknown drill type",null,"ACIUNK","Australian Consolidated Industries","Unknown",null,"COLOUR","COL_SHD","colour shade"]
[null,"VAC","Vacuum bedrock drill hole",null,"ACMECANA","ACME Laboratories","Vancouver, Canada",null,"DEFORMATION","DFM","rock deformation"]
[null,"VIB","Vibratory drill hole, sonic",null,"ACMEUNK","ACME Laboratories","Unknown",null,"DEFORMATION","DFM_INT","rock deformation intensity"]
[null,"WB","Water bore",null,"ACSADE","ACS Laboratories","Adelaide, SA",null,"GRAINSIZE","GRN","grainsize"]
[null,null,null,null,"ACSMELB","ACS Laboratories","Melbourne, Victoria",null,"MINERAL","MIN","mineral"]
[null,"Location Survey Method Codes for Sheet SL4",null,null,"ACSSYD","ACS Laboratories","Sydney, NSW",null,"MINERAL","MIN_STY","mineral style"]
[null,"GPS","Hand held GPS used for collar location ",null,"ACSUNK","ACS Laboratories","Unknown",null,"LITHOLOGY","RK","rock type"]
[null,"DGPS","Differential GPS used for collar location",null,"ACTLCANA","Activation Laboratories (Actlabs) Ltd.","Ontario, Canada",null,"LITHOLOGY","RK_COMMENTS","rock comments"]
[null,"UNK","Coordinates supplied, no method provided",null,"ACTLPER","Activation Laboratories (Actlabs) Ltd.","Perth, WA",null,"LITHOLOGY","RK_PCT","rock percentage"]
[null,"ESTIMATE","Inferred / estimated from plan or map",null,"ACTLUNK","Activation Laboratories (Actlabs) Ltd.","Unknown",null,"STRUCTURE","STR_TYP","structure type"]
[null,null,null,null,"ACTPUNK","ActLabs Pacific Pty. Ltd.","Unknown",null,"STRUCTURE","STR_FILL","structure fill"]
[null,"Downhole Survey Measurement Codes for Sheet DS4",null,null,"AGSOCANB","AGSO","Canberra, ACT",null,"STRUCTURE","STR_DIP","structure dip"]
[null,"PLAN","For nominal zero depth surveys provided by company",null,"AIRUNK","Australian Industrial Refractories","Unknown",null,"STRUCTURE","STR_AZI","structure azimuth"]
[null,"ESTIMATE","Inferred / estimated from plan or map",null,"ALSADEL","ALS Global Ltd.","Adelaide, SA",null,"STRUCTURE","STR_ALPHA","structure alpha"]
[null,"GYRO","Gyroscopic method used for downhole survey",null,"ALSBRIS","ALS Global Ltd.","Brisbane, Queensland",null,"STRUCTURE","STR_BETA","structure beta"]
[null,"SINGLE","Single-shot camera used for downhole survey",null,"ALSBURN","ALS Global Ltd.","Burnie, Tasmania",null,"STRUCTURE","STR_GAMMA","structure gamma"]
[null,"MULTI","Multi-shot camera used for downhole survey",null,"ALSCANA","ALS Global Ltd.","Canada",null,"SULPHIDE","SUL","sulphide mineral"]
[null,"COMPASS","Compass and clino or protractor ",null,"ALSORAN","ALS Global Ltd.","Orange, NSW",null,"SULPHIDE","SUL_PCT","sulphide percentage estimate"]
[null,"UNK","no survey method information available",null,"ALSPER","ALS Global Ltd.","Perth, WA",null,"SULPHIDE","SUL_STY","sulphide style"]
[null,null,null,null,"ALSTOWN","ALS Global Ltd.","Townsville, Queensland",null,"SULPHIDE","ARS_PCT","arsenic percentage estimate"]
[null,"Sample Codes for Sheet DG4",null,null,"ALSUNK","ALS Global Ltd.","Unknown",null,"SULPHIDE","ARS_STY","arsenic style"]
[null,"Sample Codes for Sheet DG4_PXRF",null,null,"AMACBRIS","Associated Mineral & Agricultural Chemical","Brisbane, Queensland",null,"SULPHIDE","CPY_PCT","chalcopyrite percentage estimate"]
[null,"CHIPS","Drill chips / cuttings unspecified method",null,"AMACTOWN","Assoc. Mineral & Agricultural Chemical Lab","Townsville, Queensland",null,"SULPHIDE","CPY_STY","chalcopyrite style"]
[null,"CHIPS_AC","Drill chips / cuttings from AC drilling",null,"AMACUNK","Assoc. Mineral & Agricultural Chemical Lab","Unknown",null,"SULPHIDE","PO_PCT","pyrrhotite percentage estimate"]
[null,"CHIPS_OH","Drill chips / cuttings from open hole eg RAB, RTM",null,"AMCHUNK","Amachem Oil","Unknown",null,"SULPHIDE","PO_STY","pyrrhotite style"]
[null,"CHIPS_RC","Drill chips / cuttings from RC drill methods",null,"AMDEADEL","Amdel Ltd.","Adelaide, SA",null,"SULPHIDE","PY_PCT","pyrite percentage estimate"]
[null,"CORE","Whole core / unspecified core",null,"AMDECAR","Amdel Ltd.","Cardiff, NSW",null,"SULPHIDE","PY_STY","pyrite style"]
[null,"HCORE","Half core",null,"AMDECOB","Amdel Ltd.","Cobar, NSW",null,"TEXTURE","TEX","rock texture"]
[null,"QCORE","Quarter core",null,"AMDEPER","Amdel Ltd.","Perth, WA",null,"VEINING","VN_COMP","vein composition"]
[null,"NS","No sample",null,"AMDEUNK","Amdel Ltd.","Unknown",null,"VEINING","VN_PCT","vein percentage"]
[null,"WATER","Water sample",null,"AMINBALL","Aminya Laboratories","Ballarat, Victoria",null,"VEINING","VN_STY","vein style"]
[null,"PULP","Laboratory prepared pulp sample",null,"AMMTPER","Australian Metallurgical and Mineral Testing","Perth, WA",null,"VEINING","VN_SEL","vein selvedge mineral"]
[null,null,null,null,"ANALADEL","Analabs Pty. Ltd.","Adelaide, SA",null,"WEATHERING","WTH_MIN","weathering mineral"]
[null,"Sample Codes for Sheet SG4",null,null,"ANALBRIS","Analabs Pty. Ltd.","Brisbane, Queensland",null,"WEATHERING","WTH_INT","weathering intensity"]
[null,"Sample Codes for Sheet SG4_PXRF",null,null,"ANALCNS","Analabs Pty. Ltd.","Cairns, Queensland"]
[null,"COSTEAN","Costean, sample pits & trenches to sample solid rock.  Insitu",null,"ANALCOB","Analabs Pty. Ltd.","Cobar, NSW"]
[null,"DRILLSPOIL","Drill spoils, drill chips ",null,"ANALORAN","Analabs Pty. Ltd.","Orange, NSW"]
[null,"FLOAT","Not insitu.  Rock chip, Rock, subcrop",null,"ANALPER","Analabs Pty. Ltd.","Perth, WA"]
[null,"LAG","Pisolitic, ferruginous (magnetic & non magnetic), lithic, quartz etc",null,"ANALTOWN","Analabs Pty. Ltd.","Townsville, Queensland"]
[null,"MINESPOIL","Waste dump, Mine dump, mullock, Pit, tailings",null,"ANALUNK","Analabs Pty. Ltd.","Unknown"]
[null,"ROCKCHIP","Insitu. Rock Chip, Rock, Grab, outcrop",null,"ANUGCANB","Dept. Geology, Australian National University","Canberra, ACT"]
[null,"SOIL","Soil, Loam, Sand, Channel, calcrete, silcrete, laterite, pisolite",null,"APALUNK","Australian Perry Agricultural Laboratory Pty. Ltd.","Unknown"]
[null,"STREAM","Stream sediment. Transported",null,"ARMPER","ARM Laboratory","Perth, WA"]
[null,"SURF_DRILL","Shallow surface drilling - Auger, Vacuum, RAB",null,"ASELSYD","Australian Selection Laboratories","Sydney, NSW"]
[null,"VEGETATION","Vegetation, biological, botanical, pollen",null,"ASSLSYD","Assay Laboratories Pty. Ltd.","Sydney, NSW"]
[null,"WATER","Water, groundwater, bore ",null,"ASSRPER","Assay Research","Perth, WA"]
[null,null,null,null,"ASWAPER","Analytical Services WA","Perth, WA"]
[null,"Barrier Material Seperating XRF & Sample for Sheets SG4_PXRF & DG4_PXRF",null,null,"BCIRCBER","Blue Circle Southern Cement","Berrima, NSW"]
[null,"PVC","PVC plastic",null,"BECQSYD","Becquerel Laboratories","Sydney, NSW"]
[null,"NONE","No barrier material - direct reading from contact with sample",null,"BEMAXTV","Bemax Laboratory","Thurla, Victoria"]
[null,"CALICO","Calico fabric",null,"BEMAXUNK","Bemax Laboratory","Unknown"]
[null,"FILM","Film",null,"BHNTHBH","Broken Hill North Lab","Broken Hill, NSW"]
[null,null,null,null,"BHPNEW","BHP","Newcastle, NSW"]
[null,"Units of Measure for Assays, Azimuth etc",null,null,"BHSTHBH","Broken Hill South Lab","Broken Hill, NSW"]
[null,"ppm","parts per million",null,"BPMAPER","BP Minerals Australia","Perth, WA"]
[null,"ppb","parts per billion",null,"BPMAUNK","BP Minerals Australia","Unknown"]
[null,"g/bcm","grams per bulk cubic metre",null,"BRIBEI","Beijing Research Institute","Beijing, China"]
[null,"pct","percent",null,"BRIMUNK","Brimstone Labs","Unknown"]
[null,"kgs","kilograms",null,"BVMADEL","Bureau Veritas Minerals Pty. Ltd.","Adelaide, SA"]
[null,"g/m3","grams per cubic metre",null,"BVMCANA","Bureau Veritas Minerals Pty. Ltd.","Canada"]
[null,"UNK_ppm","Unknown, assumed to be parts per million",null,"BVMPER","Bureau Veritas Minerals Pty. Ltd.","Perth, WA"]
[null,"UNK_ppb","Unknown, assumed to be parts per billion",null,"BVMUNK","Bureau Veritas Minerals Pty. Ltd.","Unknown"]
[null,"UNK_pct","Unknown, assumed to be percent",null,"CECUNK","CEC Laboratories","Unknown"]
[null,"ozt","ounces per ton",null,"CLMBOD","Cluff Metallurgical Laboratory","Bodangora, NSW"]
[null,"ppt","parts per trillion",null,"CMLUNK","Cobar Mines Pty Ltd Laboratories","Unknown"]
[null,"metres","metres",null,"COMADEL","Comlabs Pty. Ltd.","Adelaide, SA"]
[null,"degrees","degrees",null,"COMPSITE","Resources company data captured on-site","Site"]
[null,"mg/m3","miligrams per cubic metre",null,"COMSA","Classic Comlabs","South Australia"]
[null,"mg/l","miligrams per litre",null,"COMTEMO","Comlabs Pty. Ltd.","Temora, NSW"]
[null,"kg/m3","kilograms per cubic metre",null,"COMUNK","Comlabs Pty. Ltd.","Unknown"]
[null,"degrees_MAG","degrees, magnetic north",null,"CSIRCANB","Baas Becking Laboratory, CSIRO","Canberra, ACT"]
[null,"degrees_UTM","degrees, UTM (grid) north",null,"CSIRUNK","CSIRO Laboratories","Unknown"]
[null,"degrees_TRUE","degrees, true north",null,"DIAPER","Diamantina Laboratories","Perth, WA"]
[null,"sec","seconds",null,"ENDUNK","Endeavor Laboratory","Unknown"]
[null,"%","percent",null,"ENVOSYD","Enviromet Operations Pty. Ltd.","Sydney, NSW"]
[null,null,null,null,"ENVOUNK","Enviromet Operations Pty. Ltd.","Unknown"]
[null,null,null,null,"FOXSYD","Fox Laboratories","Sydney, NSW"]
[null,null,null,null,"FUJIANCH","Fujian  Geological Testing   Centre","China"]
[null,null,null,null,"GEKKOPER","Gekko","Perth, WA"]
[null,null,null,null,"GENADEL","Genalysis Laboratory Services Pty. Ltd.","Adelaide, SA"]
[null,null,null,null,"GENPER","Genalysis Laboratory Services Pty. Ltd.","Perth, WA"]
[null,null,null,null,"GENUNK","Genalysis Laboratory Services Pty. Ltd.","Unknown"]
[null,null,null,null,"GEOSYD","GEOPEKO Laboratory","Sydney, NSW"]
[null,null,null,null,"GEOUNK","Geochemical & Mineralogical Laboratories","Unknown"]
[null,null,null,null,"GFLADEL","Griffith Laboratories","Adelaide, SA"]
[null,null,null,null,"GMLPER","Geochemical & Mineralogical Laboratories","Perth, WA"]
[null,null,null,null,"GMLSYD","Geochemical & Mineralogical Laboratories","Sydney, NSW"]
[null,null,null,null,"GMLUNK","Geochemical & Mineralogical Laboratories","Unknown"]
[null,null,null,null,"GMNSYD","Geomin Laboratories","Sydney, NSW"]
[null,null,null,null,"GMNUNK","Geomin Laboratories","Unknown"]
[null,null,null,null,"GRAYUNK","Graymont Central Laboratory","Unknown"]
[null,null,null,null,"GRGBRIS","Geophoto Resources Consultants Geochemical Lab","Brisbane, Queensland"]
[null,null,null,null,"GSCUNK","GSC Labs","Unknown"]
[null,null,null,null,"GSLALEX","General Superintendence Laboratories","Alexandria, NSW"]
[null,null,null,null,"GSLSYD","General Superintendance Co.","Sydney, NSW"]
[null,null,null,null,"GUILINCH","Guilin Laboratory","China"]
[null,null,null,null,"IDLPER","Independent Diamond Laboratories","Perth, WA"]
[null,null,null,null,"ILUKAHAM","Iluka Resources Laboratory","Hamilton, Victoria"]
[null,null,null,null,"ILUKANWA","Iluka Resources Laboratory","Narngulu, WA"]
[null,null,null,null,"ILUKAUNK","Iluka Resources Laboratory","Unknown"]
[null,null,null,null,"ITSTOWN","Intertek Townsville","Townsville, Queensland"]
[null,null,null,null,"JFGSYD","John F. Gilfillan & Associates Pty. Ltd.","Sydney, NSW"]
[null,null,null,null,"JFGUNK","John F. Gilfillan & Associates Pty. Ltd.","Unknown"]
[null,null,null,null,"KAYUNK","Kaymin Laboratories","Unknown"]
[null,null,null,null,"KAYWEL","Kaymin Laboratories","Welshpool, WA"]
[null,null,null,null,"KMLUNK","Kal. Met. Labs","Unknown"]
[null,null,null,null,"LABWPER","Labwest Mineral Analysis","Perth, WA"]
[null,null,null,null,"LIMEMINE","Limestone Mine in-house lab","South Marulan, NSW"]
[null,null,null,null,"LOWDSYD","Lowder Geoscience","Sydney, NSW"]
[null,null,null,null,"MBTMIL","Murray Basin Titanium Pty Ltd Laboratory","Mildura, Victoria"]
[null,null,null,null,"MCPHADEL","McPhar Laboratories","Adelaide, SA"]
[null,null,null,null,"MCPHSYD","McPhar Laboratories","Sydney, NSW"]
[null,null,null,null,"MCPHUNK","McPhar Laboratories","Unknown"]
[null,null,null,null,"MDSSYD","Mercury Detection Systems","Sydney, NSW"]
[null,null,null,null,"MELUNK","Metals Exploration Ltd Laboratory","Unknown"]
[null,null,null,null,"METCUNK","Metcon Laboratories","Unknown"]
[null,null,null,null,"MGPLSYD","Matthey Garret Pty. Ltd.","Sydney, NSW"]
[null,null,null,null,"MICRMELB","Microbeam Services","Melbourne, Victoria"]
[null,null,null,null,"MINCAM","Minchem","Canberra, ACT"]
[null,null,null,null,"MINEBALL","Mines Exploration Pty. Ltd.","Ballarat, Victoria"]
[null,null,null,null,"MNTAUNK","Moonta Laboratory","Unknown"]
[null,null,null,null,"NBHLMOO","North Broken Hill Ltd.","Moonta, SA"]
[null,null,null,null,"NCSTORAN","Newcrest Laboratory Services","Orange, NSW"]
[null,null,null,null,"NCSTUNK","Newcrest Laboratory Services","Unknown"]
[null,null,null,null,"NGMAKERV","Natural Gypsum Miners Association","Kerang, Victoria"]
[null,null,null,null,"NMLUNK","NML Laboratories","Unknown"]
[null,null,null,null,"NMNTPER","Newmont Laboratories","Perth, WA"]
[null,null,null,null,"NOTREC","Not recorded","N/A"]
[null,null,null,null,"NRTHPARK","Northparkes Mines Laboratory","Parkes, NSW"]
[null,null,null,null,"NSLORAN","NSL Laboratories","Orange, NSW"]
[null,null,null,null,"NTHMUNK","North Mine Laboratory","Unknown"]
[null,null,null,null,"ONSTBALL","Onsite Laboratory Services Pty. Ltd.","Ballarat, Victoria"]
[null,null,null,null,"ONSTBEN","Onsite Laboratory Services Pty. Ltd.","Bendigo, Victoria"]
[null,null,null,null,"ONSTBH","Onsite Laboratory Services Pty. Ltd.","Broken Hill, NSW"]
[null,null,null,null,"ONSTCOW","Onsite Laboratory Services Pty. Ltd.","Lake Cowal, New South Wal"]
[null,null,null,null,"ONSTUNK","Onsite Laboratory Services Pty. Ltd.","Unknown"]
[null,null,null,null,"PARTEM","Paragon Gold Mine Assay Laboratory","Temora, NSW"]
[null,null,null,null,"PGMUNK","PGM onsite lab","Unknown"]
[null,null,null,null,"PILBPER","Pilbara Laboratories","Perth, WA"]
[null,null,null,null,"PILBTOWN","Pilbara Laboratories","Townsville, Queensland"]
[null,null,null,null,"PILBUNK","Pilbara Laboratories","Unknown"]
[null,null,null,null,"PPPSYD","Placer Prospecting (Australia) Pty. Ltd.","Auburn, Sydney, NSW"]
[null,null,null,null,"RDLPER","Resource Development Laboratories","Perth, WA"]
[null,null,null,null,"RDLUNK","RDL","Unknown"]
[null,null,null,null,"RIHCUNK","Royal IHC Robbins","Unknown"]
[null,null,null,null,"RIOUNK","Rio Tinto Technology and Innovation","Unknown"]
[null,null,null,null,"ROBBOW","Robertson Research","Bowral, NSW"]
[null,null,null,null,"ROSGUNK","Rosgeofizika","Unknown"]
[null,null,null,null,"SALSYD","Sydney Analytical Laboratories","Sydney, NSW"]
[null,null,null,null,"SAMSADEL","S.A.M.S Laboratory","Adelaide, SA"]
[null,null,null,null,"SASPER","Sheen Analytical Services","Perth, WA"]
[null,null,null,null,"SESPER","Sampey Exploration Services","Perth, WA"]
[null,null,null,null,"SESUNK","Sampey Exploration Services","Unknown"]
[null,null,null,null,"SGSCOB","SGS","Cobar, NSW"]
[null,null,null,null,"SGSKAL","SGS","Kalgoorlie, WA"]
[null,null,null,null,"SGSMACK","SGS","Mackay, Queensland"]
[null,null,null,null,"SGSPER","SGS","Perth, WA"]
[null,null,null,null,"SGSSYD","SGS","Sydney, NSW"]
[null,null,null,null,"SGSTOWN","SGS","Townsville, Queensland"]
[null,null,null,null,"SGSUNK","SGS","Unknown"]
[null,null,null,null,"SGSWWYA","SGS","West Wyalong, NSW"]
[null,null,null,null,"SIBELUNK","Sibelco Australia Limited","Unknown"]
[null,null,null,null,"SIMCOPER","Simcoa Operations Pty Ltd.","Perth, WA"]
[null,null,null,null,"SPECGWA","Spectrolabs","Geraldton, WA"]
[null,null,null,null,"SPECUNK","Spectrolabs","Unknown"]
[null,null,null,null,"SPESMELB","Spectrometer Services","Melbourne, Victoria"]
[null,null,null,null,"SPESUNK","Spectrometer Services","Unknown"]
[null,null,null,null,"SWEPMELB","SWEP Analytical Laboratories","Melbourne, Victoria"]
[null,null,null,null,"TABLEQLD","Tableland Analytical","Wondecla, Queensland"]
[null,null,null,null,"TCRRBNE","Tetchem & Robertson Research","Brisbane, Queensland"]
[null,null,null,null,"TECHPER","Labtech Pty. Ltd.","Perth, WA"]
[null,null,null,null,"TECHUNK","Labtech Pty. Ltd.","Unknown"]
[null,null,null,null,"TETBRIS","Tetchem Laboratories","Brisbane, Queensland"]
[null,null,null,null,"TETCNS","Tetchem Laboratories Pty. Ltd.","Cairns, Queensland"]
[null,null,null,null,"TETUNK","Tetchem Laboratories Pty. Ltd.","Unknown"]
[null,null,null,null,"THETASYD","Twotheta XRF Services","Sydney, NSW"]
[null,null,null,null,"UCCUSA","Union Carbide Corporation","New York, USA"]
[null,null,null,null,"ULTRAPER","UltraTrace Laboratories","Perth, WA"]
[null,null,null,null,"ULTRAUNK","UltraTrace Laboratories","Unknown"]
[null,null,null,null,"UNENSW","University New England","NSW"]
[null,null,null,null,"UNIMBRA","Unimin Australia Ltd.","Braeside, Victoria"]
[null,null,null,null,"UNIMEL","University of Melbourne","Melbourne, Victoria"]
[null,null,null,null,"UNIMUNK","Unimin Australia Ltd.","Unknown"]
[null,null,null,null,"UNK","Unknown","Unknown"]
[null,null,null,null,"UNSWSYD","University of New South Wales","Sydney, NSW"]
[null,null,null,null,"USGSUSA","United States Geological Survey Geochemical","USA"]
[null,null,null,null,"WARSYD","Warman International","Sydney, NSW"]
[null,null,null,null,"WGEOLBWA","Western Geolabs","Bellavue, WA"]
[null,null,null,null,"WMCBALL","Western Mining Corporation Ltd. Laboratory","Ballarat, Victoria"]
[null,null,null,null,"XRAYCANA","X-Ray Assay Laboratories","Toronto, Canada"]
[null,null,null,null,"ZINCBROK","Zinc Corporation","Broken Hill, NSW"]

{"sheet":"General Information","index":2,"n_rows":397,"n_cols":13,"rows_kept":397,"cut":false,"hidden":false,"merged":[[374,8,374,11],[375,2,375,8],[376,2,376,11],[155,2,155,11],[158,2,158,11],[156,2,156,11],[159,2,159,11],[258,2,258,4],[258,6,258,7],[258,9,258,11],[219,2,219,8],[220,2,220,11],[251,2,251,4],[249,1,249,12],[299,1,299,12],[301,6,301,7],[357,6,357,7],[357,9,357,11],[349,1,349,12],[307,2,307,4],[307,6,307,7],[307,9,307,11],[324,8,324,11],[325,2,325,8],[3,2,3,4],[1,1,1,12],[3,6,3,7],[49,1,49,12],[51,2,51,4],[3,9,3,10],[5,9,5,10],[218,8,218,11],[101,6,101,7],[99,1,99,12],[101,2,101,4],[199,1,199,12],[201,2,201,4],[201,6,201,7],[201,9,201,11],[203,3,203,4],[204,3,204,4],[202,3,202,4],[205,3,205,4],[206,3,206,4],[207,3,207,4],[208,3,208,4],[209,3,209,4],[60,2,60,4],[51,6,51,11],[53,8,53,11],[54,8,54,11],[55,8,55,11],[56,8,56,11],[57,8,57,11],[58,8,58,11],[59,8,59,11],[60,8,60,11],[61,8,61,11],[62,8,62,11],[63,8,63,11],[149,1,149,12],[64,2,64,8],[65,2,65,11],[108,8,108,11],[109,2,109,8],[110,2,110,11],[275,8,275,11],[276,2,276,8],[277,2,277,11],[261,3,261,4],[262,3,262,4],[265,3,265,4],[263,3,263,4],[264,3,264,4],[215,3,215,4],[216,3,216,4],[217,3,217,4],[259,3,259,4],[260,3,260,4],[271,3,271,4],[272,3,272,4],[273,3,273,4],[274,3,274,4],[308,3,308,4],[266,3,266,4],[267,3,267,4],[268,3,268,4],[269,3,269,4],[270,3,270,4],[315,3,315,4],[316,3,316,4],[210,3,210,4],[211,3,211,4],[212,3,212,4],[213,3,213,4],[214,3,214,4],[301,2,301,4],[317,3,317,4],[318,3,318,4],[319,3,319,4],[309,3,309,4],[311,3,311,4],[312,3,312,4],[313,3,313,4],[314,3,314,4],[359,3,359,4],[310,3,310,4],[360,3,360,4],[361,3,361,4],[362,3,362,4],[363,3,363,4],[320,3,320,4],[321,3,321,4],[322,3,322,4],[323,3,323,4],[358,3,358,4],[357,2,357,4],[326,2,326,11],[351,6,351,7],[369,3,369,4],[370,3,370,4],[371,3,371,4],[372,3,372,4],[373,3,373,4],[364,3,364,4],[365,3,365,4],[366,3,366,4],[367,3,367,4],[368,3,368,4]]}
[]
[null,"GENERAL REPORT INFORMATION"]
[null,null,null,null,null,null,null,null,null,null,null,null,"Version 4.6 18/3/2024"]
[null,null,"Report Details",null,null,null,"Data Sheets Required",null,null,"Help on using this template"]
[null,null,"Report Type*",null,null,null,null,"Drillhole Locations"]
[null,null,"Reporting Period End Date*",null,null,null,null,"Drillhole Surveys",null,"Link to exploration reporting guidelines"]
[null,null,"Tenement*",null,null,null,null,"Drillhole Logging Data"]
[null,null,"Tenement Holder*",null,null,null,null,"Drillhole Geochemistry"]
[null,null,"Project Name*",null,null,null,null,"Surface Geochemistry"]
[null,null,"Tenement Operator",null,null,null,null,"pXRF Surface Geochemistry"]
[null,null,"Start Date Of Data Acquisition",null,null,null,null,"pXRF Downhole Geochemistry"]
[null,null,"End Date Of Data Acquisition"]
[null,null,"*Mandatory fields"]
[]
[]
[]
[]
[]
[]
[]
[]
[]
[]
[]
[]
[]
[]
[]
[]
[]
[]
[]
[]
[]
[]
[]
[]
[]
[]
[]
[]
[]
[]
[]
[]
[]
[]
[]
[]
[null,"DRILLHOLE LOCATIONS INFORMATION (TO BE COMPLETED FOR SL4 SHEET)"]
[]
[null,null,"General Information and Metadata",null,null,null,"Description of Drill Codes Used in Data"]
[null,null,"Coordinate system (EPSG Code)*",null,null,null,"Code Used*","Drilling Company","Description of drilling i.e. HQ diamond drilling"]
[null,null,"Location Surveying Instrument"]
[null,null,"Location Surveying Company"]
[null,null,"Location Accuracy (m)*"]
[null,null,"Elevation Accuracy (m)"]
[null,null,"Total Depth Accuracy (m)"]
[null,null,"Azimuth Unit of Measure*"]
[]
[]
[]
[]
[]
[null,null,"General Remarks:"]
[]
[]
[]
[]
[]
[]
[]
[]
[]
[]
[]
[]
[]
[]
[]
[]
[]
[]
[]
[]
[]
[]
[]
[]
[]
[]
[]
[]
[]
[]
[]
[]
[]
[]
[null,"SURVEY INFORMATION (TO BE COMPLETED FOR DS4 SHEET)"]
[]
[null,null,"General Information and Metadata",null,null,null,"Description of Downhole Direction Svy Instruments"]
[null,null,"Depth Accuracy (m)*",null,null,null,"Instrument*","Survey company"]
[null,null,"Inclination Accuracy (deg)"]
[null,null,"Azimuth Accuracy (deg)"]
[]
[]
[]
[]
[null,null,"General Remarks:"]
[]
[]
[]
[]
[]
[]
[]
[]
[]
[]
[]
[]
[]
[]
[]
[]
[]
[]
[]
[]
[]
[]
[]
[]
[]
[]
[]
[]
[]
[]
[]
[]
[]
[]
[]
[]
[]
[]
[]
[null,"DRILLHOLE LOGGING INFORMATION (FOR DL4 AND LDD4 SHEETS)"]
[]
[null,null,"Drillhole Logging Sheet (DL4) also includes Logging Data Dictionary Sheet (LDD4)"]
[]
[null,null,"Select Additional Downhole Interval Data Sheets As Required:          Alteration               Mag Susc               Vein Data               Recovery Data               Weathering               Other Interval Data"]
[]
[null,null,"Drillhole Logging Remarks:"]
[]
[]
[null,null,"Logging Data Dictionary Remarks:"]
[]
[]
[]
[]
[]
[]
[]
[]
[]
[]
[]
[]
[]
[]
[]
[]
[]
[]
[]
[]
[]
[]
[]
[]
[]
[]
[]
[]
[]
[]
[]
[]
[]
[]
[]
[]
[]
[]
[]
[]
[null,"DRILLHOLE GEOCHEMISTRY INFORMATION (TO BE COMPLETED FOR DG4 SHEET)"]
[]
[null,null,"Description of Sample Codes Used in Data",null,null,null,"Description of Prep Codes Used in Data",null,null,"Description of Assay Codes Used in Data"]
[null,null,"Sample Code*","Description e.g. Riffle split drill cuttings*",null,null,"Prep Code","Prep Details",null,"Assay Code*","Description e.g. 4 Acid Digestion With ICP-MS*","Company*"]
[]
[]
[]
[]
[]
[]
[]
[]
[]
[]
[]
[]
[]
[]
[]
[]
[null,null,"General Remarks: e.g. Non-sufficient sample is -9999"]
[]
[]
[]
[]
[]
[]
[]
[]
[]
[]
[]
[]
[]
[]
[]
[]
[]
[]
[]
[]
[]
[]
[]
[]
[]
[]
[]
[]
[]
[null,"SURFACE GEOCHEMISTRY INFORMATION (TO BE COMPLETED FOR SG4 SHEET)"]
[]
[null,null,"General Information and Metadata"]
[null,null,"Coordinate system (EPSG Code)*"]
[null,null,"Location Surveying Instrument"]
[null,null,"Location Surveying Company"]
[null,null,"Location Accuracy (m)*"]
[null,null,"Elevation Accuracy (m)"]
[]
[null,null,"Description of Sample Codes Used in Data",null,null,null,"Description of Prep Codes Used in Data",null,null,"Description of Assay Codes Used in Data"]
[null,null,"Sample Code*","Description e.g. 2kg grab samples *",null,null,"Prep Code","Prep Details",null,"Assay Code*","Description e.g. 4 Acid Digestion With ICP-MS*","Company*"]
[]
[]
[]
[]
[]
[]
[]
[]
[]
[]
[]
[]
[]
[]
[]
[]
[null,null,"General Remarks: e.g. Non-sufficient sample is -9999"]
[]
[]
[]
[]
[]
[]
[]
[]
[]
[]
[]
[]
[]
[]
[]
[]
[]
[]
[]
[]
[]
[]
[null,"PXRF SURFACE GEOCHEM INFORMATION (TO BE COMPLETED FOR SG4_PXRF SHEET)"]
[]
[null,null,"General Information and Metadata",null,null,null,"XRF Instrument Types"]
[null,null,"Coordinate system (EPSG Code)*",null,null,null,"Instrument type","Serial Number"]
[null,null,"Location Surveying Instrument"]
[null,null,"Location Surveying Company"]
[null,null,"Location Accuracy (m)*"]
[]
[null,null,"Description of Sample Codes Used in Data",null,null,null,"Description of Prep Codes Used in Data",null,null,"Description of Assay Codes Used in Data"]
[null,null,"Sample Code*","Description e.g. 1kg split samples*",null,null,"Prep Code","Prep Details",null,"Assay Code*","Description*","Company*"]
[null,null,null,null,null,null,null,null,null,"PXRF","Portable XRF","Resources company data captured on-site"]
[null,null,null,null,null,null,null,null,null,"PXRF_Error","Portable XRF standard error","Resources company data captured on-site"]
[]
[]
[]
[]
[]
[]
[]
[]
[]
[]
[]
[]
[]
[]
[null,null,"General Remarks:"]
[]
[]
[]
[]
[]
[]
[]
[]
[]
[]
[]
[]
[]
[]
[]
[]
[]
[]
[]
[]
[]
[]
[]
[null,"PXRF DOWNHOLE GEOCHEM INFORMATION (TO BE COMPLETED FOR DG4_PXRF SHEET)"]
[]
[null,null,null,null,null,null,"XRF Instrument Types"]
[null,null,null,null,null,null,"Instrument type","Serial Number"]
[]
[]
[]
[]
[null,null,"Description of Sample Codes Used in Data",null,null,null,"Description of Prep Codes Used in Data",null,null,"Description of Assay Codes Used in Data"]
[null,null,"Sample Code*","Description e.g. RC drilling residue bags*",null,null,"Prep Code","Prep Details",null,"Assay Code*","Description*","Company*"]
[null,null,null,null,null,null,null,null,null,"PXRF","Portable XRF","Resources company data captured on-site"]
[null,null,null,null,null,null,null,null,null,"PXRF_Error","Portable XRF standard error","Resources company data captured on-site"]
[]
[]
[]
[]
[]
[]
[]
[]
[]
[]
[]
[]
[]
[]
[null,null,"General Remarks:"]
[]
[]
[]
[]
[]
[null,null,"Enable macros"]
[null,null,"This workbook contains macros that are designed to facilitate the creation of mineral exploration data files in the formats specified in the Exploration Reporting guidelines for submission to the Geological Survey of NSW."]
[null,null,"The macros do not perform any other functions or collect any additional information from your computer or network."]
[null,null,"Macros in files downloaded from the internet are blocked as a standard security measure to protect your computer and data."]
[null,null,"You can unblock the file by transferring it to your OneDrive folder or by modifying the properties of the file as follows:"]
[null,null,"1.  Open Windows File Explorer and go to the folder where you saved the file."]
[null,null,"2.  Right-click the file and choose Properties from the menu."]
[null,null,"3.  At the bottom of the General worksheet, select the Unblock checkbox and select OK."]
[]
[null,null,"If the above option is not available, you can save the file to a trusted folder on your computer’s hard drive:"]
[null,null,"1.  In Microsoft Excel Select File > Options."]
[null,null,"2.  Select Trust Center > Trust Center Settings > Trusted Locations."]
[null,null,"3.  Select Add new location."]
[null,null,"4.  Select Browse to find the folder, select a folder, and then select OK."]
[]
[null,null,"Macros within Microsoft Excel workbooks are typically disabled by default. To enable macros within the workbook, click on the ‘Enable Content’ button on the yellow message bar."]

{"sheet":"Drillhole Locations (SL4)","index":3,"n_rows":4,"n_cols":18,"rows_kept":4,"cut":false,"hidden":true,"merged":[]}
[null,null,null,"DRILLHOLE LOCATIONS (SL4)"]
[null,null,null,"Mandatory fields are marked with an asterisk (*). See column comments (red flags) for additional information"]
[]
["ERROR",null,"Hole ID*",{"$f":"IF('General Information'!$E$53=\"\",\"East Co-ord*\",VLOOKUP('General Information'!$E$53,Lookups!$C$2:$I$16,5,FALSE))","v":"East Co-ord*"},{"$f":"IF('General Information'!$E$53=\"\",\"North Co-ord*\",VLOOKUP('General Information'!$E$53,Lookups!$C$2:$I$16,6,FALSE))","v":"North Co-ord*"},"Elevation*","Depth*","Drill Code*","Dip*","Azimuth*","Date Drilled*","Surv Method*","Surv Company","Drilling Company*","Prospect","BOH Lith","BOH Lith desc","Comments"]

{"sheet":"Drillhole Surveys (DS4)","index":4,"n_rows":4,"n_cols":12,"rows_kept":4,"cut":false,"hidden":true,"merged":[[2,5,2,7]]}
[null,null,null,"DRILLHOLE SURVEYS (DS4)"]
[null,null,null,"Mandatory fields are marked with an asterisk (*). See column comments (red flags) for additional information"]
[null,null,null,null,null,"Azimuth*"]
["ERROR",null,"Hole ID*","Depth*","Inclination*","Azi MAG","Azi UTM","Azi TRUE","Survey Method*","Survey Company","Priority","Comments"]

{"sheet":"Logging Data Dictionary (LDD4)","index":5,"n_rows":4,"n_cols":5,"rows_kept":4,"cut":false,"hidden":true,"merged":[]}
[null,null,"LOGGING DATA DICTIONARY (LDD4)"]
[null,null,"Mandatory fields are marked with an asterisk (*). See column comments (red flags) for additional information"]
[]
["ERROR","Column type*","Column Name*","Code*","Description*"]

{"sheet":"Drillhole Logging (DL4)","index":6,"n_rows":4,"n_cols":9,"rows_kept":4,"cut":false,"hidden":true,"merged":[[1,8,1,11]]}
[null,null,"DRILLHOLE LOGGING (DL4)"]
[null,null,"Mandatory fields are marked with an asterisk (*). See column comments (red flags) for additional information",null,null,null,null,null,"Add columns for additional drillhole attributes logged (interval data) eg: colour, grainsize etc"]
[null,null,null,null,null,null,"Units"]
["ERROR","Hole_ID*","From*","To*","Log Date","Comments","Attribute*","Lithology"]

{"sheet":"Drillhole Alteration","index":7,"n_rows":4,"n_cols":9,"rows_kept":4,"cut":false,"hidden":true,"merged":[[1,8,1,11]]}
[null,null,"DRILLHOLE ALTERATION"]
[null,null,"Mandatory fields are marked with an asterisk (*). See column comments (red flags) for additional information",null,null,null,null,null,"Add columns for additional drillhole attributes logged (interval data) eg: colour, grainsize etc"]
[null,null,null,null,null,null,"Units"]
["ERROR","Hole_ID*","From*","To*","Log Date","Comments","Attribute*"]

{"sheet":"Drillhole Mag Susc","index":8,"n_rows":4,"n_cols":9,"rows_kept":4,"cut":false,"hidden":true,"merged":[[1,8,1,11]]}
[null,null,"DRILLHOLE MAG SUSC"]
[null,null,"Mandatory fields are marked with an asterisk (*). See column comments (red flags) for additional information",null,null,null,null,null,"Add columns for additional drillhole attributes logged (interval data) eg: colour, grainsize etc"]
[null,null,null,null,null,null,"Units"]
["ERROR","Hole_ID*","From*","To*","Log Date","Comments","Attribute*"]

{"sheet":"Drillhole Vein","index":9,"n_rows":4,"n_cols":9,"rows_kept":4,"cut":false,"hidden":true,"merged":[[1,8,1,11]]}
[null,null,"DRILLHOLE VEIN"]
[null,null," Mandatory fields are marked with an asterisk (*). See column comments (red flags) for additional information",null,null,null,null,null,"Add columns for additional drillhole attributes logged (interval data) eg: colour, grainsize etc"]
[null,null,null,null,null,null,"Units"]
["ERROR","Hole_ID*","From*","To*","Log Date","Comments","Attribute*"]

{"sheet":"Drillhole Recovery","index":10,"n_rows":4,"n_cols":9,"rows_kept":4,"cut":false,"hidden":true,"merged":[[1,8,1,11]]}
[null,null,"DRILLHOLE RECOVERY"]
[null,null," Mandatory fields are marked with an asterisk (*). See column comments (red flags) for additional information",null,null,null,null,null,"Add columns for additional drillhole attributes logged (interval data) eg: colour, grainsize etc"]
[null,null,null,null,null,null,"Units"]
["ERROR","Hole_ID*","From*","To*","Log Date","Comments","Attribute*"]

{"sheet":"Drillhole Weathering","index":11,"n_rows":4,"n_cols":9,"rows_kept":4,"cut":false,"hidden":true,"merged":[[1,8,1,11]]}
[null,null,"DRILLHOLE WEATHERING"]
[null,null," Mandatory fields are marked with an asterisk (*). See column comments (red flags) for additional information",null,null,null,null,null,"Add columns for additional drillhole attributes logged (interval data) eg: colour, grainsize etc"]
[null,null,null,null,null,null,"Units"]
["ERROR","Hole_ID*","From*","To*","Log Date","Comments","Attribute*"]

{"sheet":"Drillhole Other","index":12,"n_rows":4,"n_cols":9,"rows_kept":4,"cut":false,"hidden":true,"merged":[[1,8,1,11]]}
[null,null,"DRILLHOLE OTHER"]
[null,null," Mandatory fields are marked with an asterisk (*). See column comments (red flags) for additional information",null,null,null,null,null,"Add columns for additional drillhole attributes logged (interval data) eg: colour, grainsize etc"]
[null,null,null,null,null,null,"Units"]
["ERROR","Hole_ID*","From*","To*","Log Date","Comments","Attribute*"]

{"sheet":"Drillhole Geochemistry (DG4)","index":13,"n_rows":6,"n_cols":17,"rows_kept":6,"cut":false,"hidden":true,"merged":[]}
[null,null,null,null,null,null,null,null,null,null,null,null,null,null,null,null,"Element*"]
[null,null,null,null,null,null,null,null,null,null,null,null,null,null,null,null,"Unit of Measure*"]
[null,null,null,null,null,null,null,null,null,"Mandatory fields are marked with an asterisk (*). See column comments (red flags) for additional information",null,null,null,null,null,null,"Assay Code*"]
[null,null,null,null,null,null,null,null,null,null,null,null,null,null,null,null,"Lower detection limit*"]
[">5",">5",">5",">5",null,null,null,null,null,null,null,null,null,null,null,null,"Upper detection limit"]
["ERROR",null,null,null,null,null,null,null,"Hole_ID*","Sample ID*","From*","To*","Sample code*","Job Number","Sample Date","Comments","Assay company code*"]

{"sheet":"Surface Geochemistry (SG4)","index":14,"n_rows":6,"n_cols":17,"rows_kept":6,"cut":false,"hidden":true,"merged":[]}
[null,null,null,null,null,null,null,null,null,null,null,null,null,null,null,null,"Element*"]
[null,null,null,null,null,null,null,null,null,null,null,null,null,null,null,null,"Unit of Measure*"]
[null,null,null,null,null,null,"Mandatory fields are marked with an asterisk (*). See column comments (red flags) for additional information",null,null,null,null,null,null,null,null,null,"Assay Code*"]
[null,null,null,null,null,null,null,null,null,null,null,null,null,null,null,null,"Lower detection limit*"]
[null,null,null,null,null,null,null,null,null,null,null,null,null,null,null,null,"Upper detection limit"]
["ERROR",null,null,null,null,"SampleID*","Sample Code*","Lithology","Lith Description",{"$f":"IF('General Information'!$E$253=\"\",\"East Co-ord*\",VLOOKUP('General Information'!$E$253,Lookups!$C$2:$I$16,5,FALSE))","v":"East Co-ord*"},{"$f":"IF('General Information'!$E$253=\"\",\"North Co-ord*\",VLOOKUP('General Information'!$E$253,Lookups!$C$2:$I$16,6,FALSE))","v":"North Co-ord*"},"Elevation","Prospect","Job Number","Sample Date","Comments","Assay company code*"]

{"sheet":"XRF Surface Geochem (SG4_PXRF)","index":15,"n_rows":5,"n_cols":17,"rows_kept":5,"cut":false,"hidden":true,"merged":[]}
[null,null,null,null,null,null,null,null,null,null,null,null,null,null,null,null,"Element*"]
[null,null,null,null,null,null,null,null,null,null,null,null,null,null,null,null,"Unit of Measure*"]
[null,null,null,null,"Mandatory fields are marked with an asterisk (*). See column comments (red flags) for additional information",null,null,null,null,null,null,null,null,null,null,null,"Assay Code*"]
[null,null,null,null,null,null,null,null,null,null,null,null,null,null,null,null,"Lower detection limit"]
["ERROR",null,null,"SampleID*",{"$f":"IF('General Information'!$E$303=\"\",\"East Co-ord*\",VLOOKUP('General Information'!$E$303,Lookups!$C$2:$I$16,5,FALSE))","v":"East Co-ord*"},{"$f":"IF('General Information'!$E$303=\"\",\"North Co-ord*\",VLOOKUP('General Information'!$E$303,Lookups!$C$2:$I$16,6,FALSE))","v":"North Co-ord*"},"Reading No.","Sequence","Mode","Time Elapsed","Duration/Beam Time","Barrier","Sample Code*","Job Number","Sample Date","Comments","Assay company code*"]

{"sheet":"XRF Downhole Geochem (DG4_PXRF)","index":16,"n_rows":5,"n_cols":17,"rows_kept":5,"cut":false,"hidden":true,"merged":[]}
[null,null,null,null,null,null,null,null,null,null,null,null,null,null,null,null,"Element*"]
[null,null,null,null,null,null,null,null,null,null,null,null,null,null,null,null,"Unit of Measure*"]
[null,null,null," Mandatory fields are marked with an asterisk (*). See column comments (red flags) for additional information",null,null,null,null,null,null,null,null,null,null,null,null,"Assay Code*"]
[null,null,null,null,null,null,null,null,null,null,null,null,null,null,null,null,"Lower detection limit"]
["ERROR",null,"Hole_ID*","Sample ID*","From*","To*","Reading No.","Sequence","Mode","Time Elapsed","Duration/Beam Time","Barrier","Sample code*","Job Number","Sample Date","Comments","Assay company code*"]

{"sheet":"Lookups","index":17,"n_rows":200,"n_cols":36,"rows_kept":200,"cut":false,"hidden":true,"merged":[]}
["Report Type",null,"EPSGs","Geodetic Datum","Coordinate system","Projection","Easting","Northing","UTM zone",null,"Units (azimuth)",null,null,null,"Drill codes","Surv method (location)",null,"Surv method (downhole)",null,"DH samp codes",null,"Surf samp codes",null,"Barrier",null,"Units (assays)",null,"Lab Codes",null,null,null,null,null,null,{"$f":"'General Information'!L204","v":0},{"$f":"IFERROR(VLOOKUP(AI1, $AD$2:$AE$200, 2, FALSE), \"\")","v":""}]
["Annual (A)",null,"Projected: GDA94/MGA zone 54 (EPSG 28354 )","GDA94","Projected","UTM MGA","MGA_E*","MGA_N*",54,null,"Degrees_MAG",null,null,null,"ACORE","GPS",null,"PLAN",null,"CHIPS",null,"COSTEAN",null,"PVC",null,"ppm",null,"AAECUNK",null,"Australian Atomic Energy Commision, Unknown","AAECUNK",null,null,null,{"$f":"'General Information'!L205","v":0},{"$f":"IFERROR(VLOOKUP(AI2, $AD$2:$AE$200, 2, FALSE), \"\")","v":""}]
["Final (F)",null,"Projected: GDA94/MGA zone 55 (EPSG 28355)","GDA94","Projected","UTM MGA","MGA_E*","MGA_N*",55,null,"Degrees_UTM",null,null,null,"AUGER","DGPS",null,"ESTIMATE",null,"CHIPS_AC",null,"DRILLSPOIL",null,"NONE",null,"ppb",null,"AALCOB",null,"Australian Assay Laboratories (AAL), Cobar, NSW","AALCOB",null,null,null,{"$f":"'General Information'!L206","v":0},""]
["Relinquishment (R)",null,"Projected: GDA94/MGA zone 56 (EPSG 28356)","GDA94","Projected","UTM MGA","MGA_E*","MGA_N*",56,null,"Degrees_TRUE",null,null,null,"DD","UNK",null,"GYRO",null,"CHIPS_OH",null,"FLOAT",null,"CALICO",null,"g/bcm",null,"AALDRAKE",null,"Australian Assay Laboratories (AAL), Drake, NSW","AALDRAKE",null,null,null,{"$f":"'General Information'!L207","v":0},""]
["Annual and Final (F)",null,"Projected: GDA94/MGA zone 57 (EPSG 28357)","GDA94","Projected","UTM MGA","MGA_E*","MGA_N*",57,null,null,null,null,null,"PCDD","ESTIMATE",null,"SINGLE",null,"CHIPS_RC",null,"LAG",null,"FILM",null,"pct",null,"AALORAN",null,"Australian Assay Laboratories (AAL), Orange, NSW","AALORAN",null,null,null,{"$f":"'General Information'!L208","v":0},""]
[null,null,"Projected: GDA2020/MGA zone 54 (EPSG 7854)","GDA2020","Projected","UTM MGA","MGA_E*","MGA_N*",54,null,null,null,null,null,"PERC",null,null,"MULTI",null,"CORE",null,"MINESPOIL",null,null,null,"kgs",null,"AALPER",null,"Australian Assay Laboratories (AAL), Perth, WA","AALPER",null,null,null,{"$f":"'General Information'!L209","v":0},""]
[null,null,"Projected: GDA2020/MGA zone 55 (EPSG 7855)","GDA2020","Projected","UTM MGA","MGA_E*","MGA_N*",55,null,null,null,null,null,"RAB",null,null,"COMPASS",null,"HCORE",null,"ROCKCHIP",null,null,null,"g/m3",null,"AALUNK",null,"Australian Assay Laboratories (AAL), Unknown","AALUNK",null,null,null,{"$f":"'General Information'!L210","v":0},""]
[null,null,"Projected: GDA2020/MGA zone 56 (EPSG 7856)","GDA2020","Projected","UTM MGA","MGA_E*","MGA_N*",56,null,null,null,null,null,"RC",null,null,"UNK",null,"QCORE",null,"SOIL",null,null,null,"UNK_ppm",null,"ABERUNK",null,"Aberfoyle Laboratory, Unknown","ABERUNK",null,null,null,{"$f":"'General Information'!L211","v":0},""]
[null,null,"Projected: GDA2020/MGA zone 57 (EPSG 7857)","GDA2020","Projected","UTM MGA","MGA_E*","MGA_N*",57,null,null,null,null,null,"RTM",null,null,null,null,"NS",null,"STREAM",null,null,null,"UNK_ppb",null,"ACIRSYD",null,"Australian Coal Industries Research Labs, Sydney, NSW","ACIRSYD",null,null,null,{"$f":"'General Information'!L212","v":0},""]
[null,null,"Projected: AGD66/AMG zone 54 (EPSG 20254)","AGD66","Projected","UTM AMG","AMG_E*","AMG_N*",54,null,null,null,null,null,"UNK",null,null,null,null,"WATER",null,"SURF_DRILL",null,null,null,"UNK_pct",null,"ACIUNK",null,"Australian Consolidated Industries, Unknown","ACIUNK",null,null,null,{"$f":"'General Information'!L213","v":0},""]
[null,null,"Projected: AGD66/AMG zone 55 (EPSG 20255)","AGD66","Projected","UTM AMG","AMG_E*","AMG_N*",55,null,null,null,null,null,"VAC",null,null,null,null,"PULP",null,"VEGETATION",null,null,null,"ozt",null,"ACMECANA",null,"ACME Laboratories, Vancouver, Canada","ACMECANA",null,null,null,{"$f":"'General Information'!L214","v":0},""]
[null,null,"Projected: AGD66/AMG zone 56 (EPSG 20256)","AGD66","Projected","UTM AMG","AMG_E*","AMG_N*",56,null,null,null,null,null,"VIB",null,null,null,null,null,null,"WATER",null,null,null,"ppt",null,"ACMEUNK",null,"ACME Laboratories, Unknown","ACMEUNK",null,null,null,{"$f":"'General Information'!L215","v":0},""]
[null,null,"Projected: AGD66/AMG zone 57 (EPSG 20257)","AGD66","Projected","UTM AMG","AMG_E*","AMG_N*",57,null,null,null,null,null,"WB",null,null,null,null,null,null,null,null,null,null,"metres",null,"ACSADE",null,"ACS Laboratories, Adelaide, SA","ACSADE",null,null,null,{"$f":"'General Information'!L216","v":0},""]
[null,null,"Geographic: WGS 84 (EPSG 4326)","WGS84","Geographic","None","Longitude*","Latitude*",null,null,"Accuracy",null,null,null,null,null,null,null,null,null,null,null,null,null,null,"degrees",null,"ACSMELB",null,"ACS Laboratories, Melbourne, Victoria","ACSMELB",null,null,null,{"$f":"'General Information'!L217","v":0},""]
[null,null,"Geographic: GDA 94 (EPSG 4283)","GDA94","Geographic","None","Longitude*","Latitude*",null,null,0.01,null,null,null,null,null,null,null,null,null,null,null,null,null,null,"mg/m3",null,"ACSSYD",null,"ACS Laboratories, Sydney, NSW","ACSSYD",null,null,null,{"$f":"'General Information'!L218","v":0},""]
[null,null,"Geographic: GDA 2020 (EPSG 7844)","GDA2020","Geographic","None","Longitude*","Latitude*",null,null,0.02,null,null,null,null,null,null,null,null,null,null,null,null,null,null,"mg/l",null,"ACSUNK",null,"ACS Laboratories, Unknown","ACSUNK",null,null,null,{"$f":"'General Information'!L261","v":0},""]
["Build Number",null,null,null,null,null,null,null,null,null,0.05,null,null,null,null,null,null,null,null,null,null,null,null,null,null,"kg/m3",null,"ACTLCANA",null,"Activation Laboratories (Actlabs) Ltd., Ontario, Canada","ACTLCANA",null,null,null,{"$f":"'General Information'!L262","v":0},""]
["4.60.02",null,null,null,null,null,null,null,null,null,0.1,null,null,null,null,null,null,null,null,null,null,null,null,null,null,"%",null,"ACTLPER",null,"Activation Laboratories (Actlabs) Ltd., Perth, WA","ACTLPER",null,null,null,{"$f":"'General Information'!L263","v":0},""]
[null,null,null,null,null,null,null,null,null,null,0.2,null,null,null,null,null,null,null,null,null,null,null,null,null,null,null,null,"ACTLUNK",null,"Activation Laboratories (Actlabs) Ltd., Unknown","ACTLUNK",null,null,null,{"$f":"'General Information'!L264","v":0},""]
[null,null,null,null,null,null,null,null,null,null,0.5,null,null,null,null,null,null,null,null,null,null,null,null,null,null,null,null,"ACTPUNK",null,"ActLabs Pacific Pty. Ltd., Unknown","ACTPUNK",null,null,null,{"$f":"'General Information'!L265","v":0},""]
[null,null,null,null,null,null,null,null,null,null,1,null,null,null,null,null,null,null,null,null,null,null,null,null,null,null,null,"AGSOCANB",null,"AGSO, Canberra, ACT","AGSOCANB",null,null,null,{"$f":"'General Information'!L266","v":0},""]
[null,null,null,null,null,null,null,null,null,null,2,null,null,null,null,null,null,null,null,null,null,null,null,null,null,null,null,"AIRUNK",null,"Australian Industrial Refractories, Unknown","AIRUNK",null,null,null,{"$f":"'General Information'!L267","v":0},""]
[null,null,null,null,null,null,null,null,null,null,5,null,null,null,null,null,null,null,null,null,null,null,null,null,null,null,null,"ALSADEL",null,"ALS Global Ltd., Adelaide, SA","ALSADEL",null,null,null,{"$f":"'General Information'!L268","v":0},""]
[null,null,null,null,null,null,null,null,null,null,10,null,null,null,null,null,null,null,null,null,null,null,null,null,null,null,null,"ALSBRIS",null,"ALS Global Ltd., Brisbane, Queensland","ALSBRIS",null,null,null,{"$f":"'General Information'!L269","v":0},""]
[null,null,null,null,null,null,null,null,null,null,25,null,null,null,null,null,null,null,null,null,null,null,null,null,null,null,null,"ALSBURN",null,"ALS Global Ltd., Burnie, Tasmania","ALSBURN",null,null,null,{"$f":"'General Information'!L270","v":0},""]
[null,null,null,null,null,null,null,null,null,null,50,null,null,null,null,null,null,null,null,null,null,null,null,null,null,null,null,"ALSCANA",null,"ALS Global Ltd., Canada","ALSCANA",null,null,null,{"$f":"'General Information'!L271","v":0},""]
[null,null,null,null,null,null,null,null,null,null,100,null,null,null,null,null,null,null,null,null,null,null,null,null,null,null,null,"ALSORAN",null,"ALS Global Ltd., Orange, NSW","ALSORAN",null,null,null,{"$f":"'General Information'!L272","v":0},""]
[null,null,null,null,null,null,null,null,null,null,null,null,null,null,null,null,null,null,null,null,null,null,null,null,null,null,null,"ALSPER",null,"ALS Global Ltd., Perth, WA","ALSPER",null,null,null,{"$f":"'General Information'!L273","v":0},""]
[null,null,null,null,null,null,null,null,null,null,null,null,null,null,null,null,null,null,null,null,null,null,null,null,null,null,null,"ALSTOWN",null,"ALS Global Ltd., Townsville, Queensland","ALSTOWN",null,null,null,{"$f":"'General Information'!L274","v":0},""]
[null,null,null,null,null,null,null,null,null,null,null,null,null,null,null,null,null,null,null,null,null,null,null,null,null,null,null,"ALSUNK",null,"ALS Global Ltd., Unknown","ALSUNK",null,null,null,{"$f":"'General Information'!L275","v":0},""]
[null,null,null,null,null,null,null,null,null,null,null,null,null,null,null,null,null,null,null,null,null,null,null,null,null,null,null,"AMACBRIS",null,"Associated Mineral & Agricultural Chemical, Brisbane, Queensland","AMACBRIS",null,null,null,{"$f":"'General Information'!L310","v":"Resources company data captured on-site"},"COMPSITE"]
[null,null,null,null,null,null,null,null,null,null,null,null,null,null,null,null,null,null,null,null,null,null,null,null,null,null,null,"AMACTOWN",null,"Assoc. Mineral & Agricultural Chemical Lab, Townsville, Queensland","AMACTOWN",null,null,null,{"$f":"'General Information'!L311","v":"Resources company data captured on-site"},"COMPSITE"]
[null,null,null,null,null,null,null,null,null,null,null,null,null,null,null,null,null,null,null,null,null,null,null,null,null,null,null,"AMACUNK",null,"Assoc. Mineral & Agricultural Chemical Lab, Unknown","AMACUNK",null,null,null,{"$f":"'General Information'!L312","v":0},""]
[null,null,null,null,null,null,null,null,null,null,null,null,null,null,null,null,null,null,null,null,null,null,null,null,null,null,null,"AMCHUNK",null,"Amachem Oil, Unknown","AMCHUNK",null,null,null,{"$f":"'General Information'!L313","v":0},""]
[null,null,null,null,null,null,null,null,null,null,null,null,null,null,null,null,null,null,null,null,null,null,null,null,null,null,null,"AMDEADEL",null,"Amdel Ltd., Adelaide, SA","AMDEADEL",null,null,null,{"$f":"'General Information'!L314","v":0},""]
[null,null,null,null,null,null,null,null,null,null,null,null,null,null,null,null,null,null,null,null,null,null,null,null,null,null,null,"AMDECAR",null,"Amdel Ltd., Cardiff, NSW","AMDECAR",null,null,null,{"$f":"'General Information'!L315","v":0},""]
[null,null,null,null,null,null,null,null,null,null,null,null,null,null,null,null,null,null,null,null,null,null,null,null,null,null,null,"AMDECOB",null,"Amdel Ltd., Cobar, NSW","AMDECOB",null,null,null,{"$f":"'General Information'!L316","v":0},""]
[null,null,null,null,null,null,null,null,null,null,null,null,null,null,null,null,null,null,null,null,null,null,null,null,null,null,null,"AMDEPER",null,"Amdel Ltd., Perth, WA","AMDEPER",null,null,null,{"$f":"'General Information'!L317","v":0},""]
[null,null,null,null,null,null,null,null,null,null,null,null,null,null,null,null,null,null,null,null,null,null,null,null,null,null,null,"AMDEUNK",null,"Amdel Ltd., Unknown","AMDEUNK",null,null,null,{"$f":"'General Information'!L318","v":0},""]
[null,null,null,null,null,null,null,null,null,null,null,null,null,null,null,null,null,null,null,null,null,null,null,null,null,null,null,"AMINBALL",null,"Aminya Laboratories, Ballarat, Victoria","AMINBALL",null,null,null,{"$f":"'General Information'!L319","v":0},""]
[null,null,null,null,null,null,null,null,null,null,null,null,null,null,null,null,null,null,null,null,null,null,null,null,null,null,null,"AMMTPER",null,"Australian Metallurgical and Mineral Testing, Perth, WA","AMMTPER",null,null,null,{"$f":"'General Information'!L320","v":0},""]
[null,null,null,null,null,null,null,null,null,null,null,null,null,null,null,null,null,null,null,null,null,null,null,null,null,null,null,"ANALADEL",null,"Analabs Pty. Ltd., Adelaide, SA","ANALADEL",null,null,null,{"$f":"'General Information'!L321","v":0},""]
[null,null,null,null,null,null,null,null,null,null,null,null,null,null,null,null,null,null,null,null,null,null,null,null,null,null,null,"ANALBRIS",null,"Analabs Pty. Ltd., Brisbane, Queensland","ANALBRIS",null,null,null,{"$f":"'General Information'!L322","v":0},""]
[null,null,null,null,null,null,null,null,null,null,null,null,null,null,null,null,null,null,null,null,null,null,null,null,null,null,null,"ANALCNS",null,"Analabs Pty. Ltd., Cairns, Queensland","ANALCNS",null,null,null,{"$f":"'General Information'!L323","v":0},""]
[null,null,null,null,null,null,null,null,null,null,null,null,null,null,null,null,null,null,null,null,null,null,null,null,null,null,null,"ANALCOB",null,"Analabs Pty. Ltd., Cobar, NSW","ANALCOB",null,null,null,{"$f":"'General Information'!L324","v":0},""]
[null,null,null,null,null,null,null,null,null,null,null,null,null,null,null,null,null,null,null,null,null,null,null,null,null,null,null,"ANALORAN",null,"Analabs Pty. Ltd., Orange, NSW","ANALORAN",null,null,null,{"$f":"'General Information'!L360","v":"Resources company data captured on-site"},"COMPSITE"]
[null,null,null,null,null,null,null,null,null,null,null,null,null,null,null,null,null,null,null,null,null,null,null,null,null,null,null,"ANALPER",null,"Analabs Pty. Ltd., Perth, WA","ANALPER",null,null,null,{"$f":"'General Information'!L361","v":"Resources company data captured on-site"},"COMPSITE"]
[null,null,null,null,null,null,null,null,null,null,null,null,null,null,null,null,null,null,null,null,null,null,null,null,null,null,null,"ANALTOWN",null,"Analabs Pty. Ltd., Townsville, Queensland","ANALTOWN",null,null,null,{"$f":"'General Information'!L362","v":0},""]
[null,null,null,null,null,null,null,null,null,null,null,null,null,null,null,null,null,null,null,null,null,null,null,null,null,null,null,"ANALUNK",null,"Analabs Pty. Ltd., Unknown","ANALUNK",null,null,null,{"$f":"'General Information'!L363","v":0},""]
[null,null,null,null,null,null,null,null,null,null,null,null,null,null,null,null,null,null,null,null,null,null,null,null,null,null,null,"ANUGCANB",null,"Dept. Geology, Australian National University, Canberra, ACT","ANUGCANB",null,null,null,{"$f":"'General Information'!L364","v":0},""]
[null,null,null,null,null,null,null,null,null,null,null,null,null,null,null,null,null,null,null,null,null,null,null,null,null,null,null,"APALUNK",null,"Australian Perry Agricultural Laboratory Pty. Ltd., Unknown","APALUNK",null,null,null,{"$f":"'General Information'!L365","v":0},""]
[null,null,null,null,null,null,null,null,null,null,null,null,null,null,null,null,null,null,null,null,null,null,null,null,null,null,null,"ARMPER",null,"ARM Laboratory, Perth, WA","ARMPER",null,null,null,{"$f":"'General Information'!L366","v":0},""]
[null,null,null,null,null,null,null,null,null,null,null,null,null,null,null,null,null,null,null,null,null,null,null,null,null,null,null,"ASELSYD",null,"Australian Selection Laboratories, Sydney, NSW","ASELSYD",null,null,null,{"$f":"'General Information'!L367","v":0},""]
[null,null,null,null,null,null,null,null,null,null,null,null,null,null,null,null,null,null,null,null,null,null,null,null,null,null,null,"ASSLSYD",null,"Assay Laboratories Pty. Ltd., Sydney, NSW","ASSLSYD",null,null,null,{"$f":"'General Information'!L368","v":0},""]
[null,null,null,null,null,null,null,null,null,null,null,null,null,null,null,null,null,null,null,null,null,null,null,null,null,null,null,"ASSRPER",null,"Assay Research, Perth, WA","ASSRPER",null,null,null,{"$f":"'General Information'!L369","v":0},""]
[null,null,null,null,null,null,null,null,null,null,null,null,null,null,null,null,null,null,null,null,null,null,null,null,null,null,null,"ASWAPER",null,"Analytical Services WA, Perth, WA","ASWAPER",null,null,null,{"$f":"'General Information'!L370","v":0},""]
[null,null,null,null,null,null,null,null,null,null,null,null,null,null,null,null,null,null,null,null,null,null,null,null,null,null,null,"BCIRCBER",null,"Blue Circle Southern Cement, Berrima, NSW","BCIRCBER",null,null,null,{"$f":"'General Information'!L371","v":0},""]
[null,null,null,null,null,null,null,null,null,null,null,null,null,null,null,null,null,null,null,null,null,null,null,null,null,null,null,"BECQSYD",null,"Becquerel Laboratories, Sydney, NSW","BECQSYD",null,null,null,{"$f":"'General Information'!L372","v":0},""]
[null,null,null,null,null,null,null,null,null,null,null,null,null,null,null,null,null,null,null,null,null,null,null,null,null,null,null,"BEMAXTV",null,"Bemax Laboratory, Thurla, Victoria","BEMAXTV",null,null,null,{"$f":"'General Information'!L373","v":0},""]
[null,null,null,null,null,null,null,null,null,null,null,null,null,null,null,null,null,null,null,null,null,null,null,null,null,null,null,"BEMAXUNK",null,"Bemax Laboratory, Unknown","BEMAXUNK",null,null,null,{"$f":"'General Information'!L374","v":0},""]
[null,null,null,null,null,null,null,null,null,null,null,null,null,null,null,null,null,null,null,null,null,null,null,null,null,null,null,"BHNTHBH",null,"Broken Hill North Lab, Broken Hill, NSW","BHNTHBH"]
[null,null,null,null,null,null,null,null,null,null,null,null,null,null,null,null,null,null,null,null,null,null,null,null,null,null,null,"BHPNEW",null,"BHP, Newcastle, NSW","BHPNEW"]
[null,null,null,null,null,null,null,null,null,null,null,null,null,null,null,null,null,null,null,null,null,null,null,null,null,null,null,"BHSTHBH",null,"Broken Hill South Lab, Broken Hill, NSW","BHSTHBH"]
[null,null,null,null,null,null,null,null,null,null,null,null,null,null,null,null,null,null,null,null,null,null,null,null,null,null,null,"BPMAPER",null,"BP Minerals Australia, Perth, WA","BPMAPER"]
[null,null,null,null,null,null,null,null,null,null,null,null,null,null,null,null,null,null,null,null,null,null,null,null,null,null,null,"BPMAUNK",null,"BP Minerals Australia, Unknown","BPMAUNK"]
[null,null,null,null,null,null,null,null,null,null,null,null,null,null,null,null,null,null,null,null,null,null,null,null,null,null,null,"BRIBEI",null,"Beijing Research Institute, Beijing, China","BRIBEI"]
[null,null,null,null,null,null,null,null,null,null,null,null,null,null,null,null,null,null,null,null,null,null,null,null,null,null,null,"BRIMUNK",null,"Brimstone Labs, Unknown","BRIMUNK"]
[null,null,null,null,null,null,null,null,null,null,null,null,null,null,null,null,null,null,null,null,null,null,null,null,null,null,null,"BVMADEL",null,"Bureau Veritas Minerals Pty. Ltd., Adelaide, SA","BVMADEL"]
[null,null,null,null,null,null,null,null,null,null,null,null,null,null,null,null,null,null,null,null,null,null,null,null,null,null,null,"BVMCANA",null,"Bureau Veritas Minerals Pty. Ltd., Canada","BVMCANA"]
[null,null,null,null,null,null,null,null,null,null,null,null,null,null,null,null,null,null,null,null,null,null,null,null,null,null,null,"BVMPER",null,"Bureau Veritas Minerals Pty. Ltd., Perth, WA","BVMPER"]
[null,null,null,null,null,null,null,null,null,null,null,null,null,null,null,null,null,null,null,null,null,null,null,null,null,null,null,"BVMUNK",null,"Bureau Veritas Minerals Pty. Ltd., Unknown","BVMUNK"]
[null,null,null,null,null,null,null,null,null,null,null,null,null,null,null,null,null,null,null,null,null,null,null,null,null,null,null,"CECUNK",null,"CEC Laboratories, Unknown","CECUNK"]
[null,null,null,null,null,null,null,null,null,null,null,null,null,null,null,null,null,null,null,null,null,null,null,null,null,null,null,"CLMBOD",null,"Cluff Metallurgical Laboratory, Bodangora, NSW","CLMBOD"]
[null,null,null,null,null,null,null,null,null,null,null,null,null,null,null,null,null,null,null,null,null,null,null,null,null,null,null,"CMLUNK",null,"Cobar Mines Pty Ltd Laboratories, Unknown","CMLUNK"]
[null,null,null,null,null,null,null,null,null,null,null,null,null,null,null,null,null,null,null,null,null,null,null,null,null,null,null,"COMADEL",null,"Comlabs Pty. Ltd., Adelaide, SA","COMADEL"]
[null,null,null,null,null,null,null,null,null,null,null,null,null,null,null,null,null,null,null,null,null,null,null,null,null,null,null,"COMPSITE",null,"Resources company data captured on-site","COMPSITE"]
[null,null,null,null,null,null,null,null,null,null,null,null,null,null,null,null,null,null,null,null,null,null,null,null,null,null,null,"COMSA",null,"Classic Comlabs, South Australia","COMSA"]
[null,null,null,null,null,null,null,null,null,null,null,null,null,null,null,null,null,null,null,null,null,null,null,null,null,null,null,"COMTEMO",null,"Comlabs Pty. Ltd., Temora, NSW","COMTEMO"]
[null,null,null,null,null,null,null,null,null,null,null,null,null,null,null,null,null,null,null,null,null,null,null,null,null,null,null,"COMUNK",null,"Comlabs Pty. Ltd., Unknown","COMUNK"]
[null,null,null,null,null,null,null,null,null,null,null,null,null,null,null,null,null,null,null,null,null,null,null,null,null,null,null,"CSIRCANB",null,"Baas Becking Laboratory, CSIRO, Canberra, ACT","CSIRCANB"]
[null,null,null,null,null,null,null,null,null,null,null,null,null,null,null,null,null,null,null,null,null,null,null,null,null,null,null,"CSIRUNK",null,"CSIRO Laboratories, Unknown","CSIRUNK"]
[null,null,null,null,null,null,null,null,null,null,null,null,null,null,null,null,null,null,null,null,null,null,null,null,null,null,null,"DIAPER",null,"Diamantina Laboratories, Perth, WA","DIAPER"]
[null,null,null,null,null,null,null,null,null,null,null,null,null,null,null,null,null,null,null,null,null,null,null,null,null,null,null,"ENDUNK",null,"Endeavor Laboratory, Unknown","ENDUNK"]
[null,null,null,null,null,null,null,null,null,null,null,null,null,null,null,null,null,null,null,null,null,null,null,null,null,null,null,"ENVOSYD",null,"Enviromet Operations Pty. Ltd., Sydney, NSW","ENVOSYD"]
[null,null,null,null,null,null,null,null,null,null,null,null,null,null,null,null,null,null,null,null,null,null,null,null,null,null,null,"ENVOUNK",null,"Enviromet Operations Pty. Ltd., Unknown","ENVOUNK"]
[null,null,null,null,null,null,null,null,null,null,null,null,null,null,null,null,null,null,null,null,null,null,null,null,null,null,null,"FOXSYD",null,"Fox Laboratories, Sydney, NSW","FOXSYD"]
[null,null,null,null,null,null,null,null,null,null,null,null,null,null,null,null,null,null,null,null,null,null,null,null,null,null,null,"FUJIANCH",null,"Fujian  Geological Testing   Centre, China","FUJIANCH"]
[null,null,null,null,null,null,null,null,null,null,null,null,null,null,null,null,null,null,null,null,null,null,null,null,null,null,null,"GEKKOPER",null,"Gekko, Perth, WA","GEKKOPER"]
[null,null,null,null,null,null,null,null,null,null,null,null,null,null,null,null,null,null,null,null,null,null,null,null,null,null,null,"GENADEL",null,"Genalysis Laboratory Services Pty. Ltd., Adelaide, SA","GENADEL"]
[null,null,null,null,null,null,null,null,null,null,null,null,null,null,null,null,null,null,null,null,null,null,null,null,null,null,null,"GENPER",null,"Genalysis Laboratory Services Pty. Ltd., Perth, WA","GENPER"]
[null,null,null,null,null,null,null,null,null,null,null,null,null,null,null,null,null,null,null,null,null,null,null,null,null,null,null,"GENUNK",null,"Genalysis Laboratory Services Pty. Ltd., Unknown","GENUNK"]
[null,null,null,null,null,null,null,null,null,null,null,null,null,null,null,null,null,null,null,null,null,null,null,null,null,null,null,"GEOSYD",null,"GEOPEKO Laboratory, Sydney, NSW","GEOSYD"]
[null,null,null,null,null,null,null,null,null,null,null,null,null,null,null,null,null,null,null,null,null,null,null,null,null,null,null,"GEOUNK",null,"Geochemical & Mineralogical Laboratories, Unknown","GEOUNK"]
[null,null,null,null,null,null,null,null,null,null,null,null,null,null,null,null,null,null,null,null,null,null,null,null,null,null,null,"GFLADEL",null,"Griffith Laboratories, Adelaide, SA","GFLADEL"]
[null,null,null,null,null,null,null,null,null,null,null,null,null,null,null,null,null,null,null,null,null,null,null,null,null,null,null,"GMLPER",null,"Geochemical & Mineralogical Laboratories, Perth, WA","GMLPER"]
[null,null,null,null,null,null,null,null,null,null,null,null,null,null,null,null,null,null,null,null,null,null,null,null,null,null,null,"GMLSYD",null,"Geochemical & Mineralogical Laboratories, Sydney, NSW","GMLSYD"]
[null,null,null,null,null,null,null,null,null,null,null,null,null,null,null,null,null,null,null,null,null,null,null,null,null,null,null,"GMLUNK",null,"Geochemical & Mineralogical Laboratories, Unknown","GMLUNK"]
[null,null,null,null,null,null,null,null,null,null,null,null,null,null,null,null,null,null,null,null,null,null,null,null,null,null,null,"GMNSYD",null,"Geomin Laboratories, Sydney, NSW","GMNSYD"]
[null,null,null,null,null,null,null,null,null,null,null,null,null,null,null,null,null,null,null,null,null,null,null,null,null,null,null,"GMNUNK",null,"Geomin Laboratories, Unknown","GMNUNK"]
[null,null,null,null,null,null,null,null,null,null,null,null,null,null,null,null,null,null,null,null,null,null,null,null,null,null,null,"GRAYUNK",null,"Graymont Central Laboratory, Unknown","GRAYUNK"]
[null,null,null,null,null,null,null,null,null,null,null,null,null,null,null,null,null,null,null,null,null,null,null,null,null,null,null,"GRGBRIS",null,"Geophoto Resources Consultants Geochemical Lab, Brisbane, Queensland","GRGBRIS"]
[null,null,null,null,null,null,null,null,null,null,null,null,null,null,null,null,null,null,null,null,null,null,null,null,null,null,null,"GSCUNK",null,"GSC Labs, Unknown","GSCUNK"]
[null,null,null,null,null,null,null,null,null,null,null,null,null,null,null,null,null,null,null,null,null,null,null,null,null,null,null,"GSLALEX",null,"General Superintendence Laboratories, Alexandria, NSW","GSLALEX"]
[null,null,null,null,null,null,null,null,null,null,null,null,null,null,null,null,null,null,null,null,null,null,null,null,null,null,null,"GSLSYD",null,"General Superintendance Co., Sydney, NSW","GSLSYD"]
[null,null,null,null,null,null,null,null,null,null,null,null,null,null,null,null,null,null,null,null,null,null,null,null,null,null,null,"GUILINCH",null,"Guilin Laboratory, China","GUILINCH"]
[null,null,null,null,null,null,null,null,null,null,null,null,null,null,null,null,null,null,null,null,null,null,null,null,null,null,null,"IDLPER",null,"Independent Diamond Laboratories, Perth, WA","IDLPER"]
[null,null,null,null,null,null,null,null,null,null,null,null,null,null,null,null,null,null,null,null,null,null,null,null,null,null,null,"ILUKAHAM",null,"Iluka Resources Laboratory, Hamilton, Victoria","ILUKAHAM"]
[null,null,null,null,null,null,null,null,null,null,null,null,null,null,null,null,null,null,null,null,null,null,null,null,null,null,null,"ILUKANWA",null,"Iluka Resources Laboratory, Narngulu, WA","ILUKANWA"]
[null,null,null,null,null,null,null,null,null,null,null,null,null,null,null,null,null,null,null,null,null,null,null,null,null,null,null,"ILUKAUNK",null,"Iluka Resources Laboratory, Unknown","ILUKAUNK"]
[null,null,null,null,null,null,null,null,null,null,null,null,null,null,null,null,null,null,null,null,null,null,null,null,null,null,null,"ITSTOWN",null,"Intertek Townsville, Townsville, Queensland","ITSTOWN"]
[null,null,null,null,null,null,null,null,null,null,null,null,null,null,null,null,null,null,null,null,null,null,null,null,null,null,null,"JFGSYD",null,"John F. Gilfillan & Associates Pty. Ltd., Sydney, NSW","JFGSYD"]
[null,null,null,null,null,null,null,null,null,null,null,null,null,null,null,null,null,null,null,null,null,null,null,null,null,null,null,"JFGUNK",null,"John F. Gilfillan & Associates Pty. Ltd., Unknown","JFGUNK"]
[null,null,null,null,null,null,null,null,null,null,null,null,null,null,null,null,null,null,null,null,null,null,null,null,null,null,null,"KAYUNK",null,"Kaymin Laboratories, Unknown","KAYUNK"]
[null,null,null,null,null,null,null,null,null,null,null,null,null,null,null,null,null,null,null,null,null,null,null,null,null,null,null,"KAYWEL",null,"Kaymin Laboratories, Welshpool, WA","KAYWEL"]
[null,null,null,null,null,null,null,null,null,null,null,null,null,null,null,null,null,null,null,null,null,null,null,null,null,null,null,"KMLUNK",null,"Kal. Met. Labs, Unknown","KMLUNK"]
[null,null,null,null,null,null,null,null,null,null,null,null,null,null,null,null,null,null,null,null,null,null,null,null,null,null,null,"LABWPER",null,"Labwest Mineral Analysis, Perth, WA","LABWPER"]
[null,null,null,null,null,null,null,null,null,null,null,null,null,null,null,null,null,null,null,null,null,null,null,null,null,null,null,"LIMEMINE",null,"Limestone Mine in-house lab, South Marulan, NSW","LIMEMINE"]
[null,null,null,null,null,null,null,null,null,null,null,null,null,null,null,null,null,null,null,null,null,null,null,null,null,null,null,"LOWDSYD",null,"Lowder Geoscience, Sydney, NSW","LOWDSYD"]
[null,null,null,null,null,null,null,null,null,null,null,null,null,null,null,null,null,null,null,null,null,null,null,null,null,null,null,"MBTMIL",null,"Murray Basin Titanium Pty Ltd Laboratory, Mildura, Victoria","MBTMIL"]
[null,null,null,null,null,null,null,null,null,null,null,null,null,null,null,null,null,null,null,null,null,null,null,null,null,null,null,"MCPHADEL",null,"McPhar Laboratories, Adelaide, SA","MCPHADEL"]
[null,null,null,null,null,null,null,null,null,null,null,null,null,null,null,null,null,null,null,null,null,null,null,null,null,null,null,"MCPHSYD",null,"McPhar Laboratories, Sydney, NSW","MCPHSYD"]
[null,null,null,null,null,null,null,null,null,null,null,null,null,null,null,null,null,null,null,null,null,null,null,null,null,null,null,"MCPHUNK",null,"McPhar Laboratories, Unknown","MCPHUNK"]
[null,null,null,null,null,null,null,null,null,null,null,null,null,null,null,null,null,null,null,null,null,null,null,null,null,null,null,"MDSSYD",null,"Mercury Detection Systems, Sydney, NSW","MDSSYD"]
[null,null,null,null,null,null,null,null,null,null,null,null,null,null,null,null,null,null,null,null,null,null,null,null,null,null,null,"MELUNK",null,"Metals Exploration Ltd Laboratory, Unknown","MELUNK"]
[null,null,null,null,null,null,null,null,null,null,null,null,null,null,null,null,null,null,null,null,null,null,null,null,null,null,null,"METCUNK",null,"Metcon Laboratories, Unknown","METCUNK"]
[null,null,null,null,null,null,null,null,null,null,null,null,null,null,null,null,null,null,null,null,null,null,null,null,null,null,null,"MGPLSYD",null,"Matthey Garret Pty. Ltd., Sydney, NSW","MGPLSYD"]
[null,null,null,null,null,null,null,null,null,null,null,null,null,null,null,null,null,null,null,null,null,null,null,null,null,null,null,"MICRMELB",null,"Microbeam Services, Melbourne, Victoria","MICRMELB"]
[null,null,null,null,null,null,null,null,null,null,null,null,null,null,null,null,null,null,null,null,null,null,null,null,null,null,null,"MINCAM",null,"Minchem, Canberra, ACT","MINCAM"]
[null,null,null,null,null,null,null,null,null,null,null,null,null,null,null,null,null,null,null,null,null,null,null,null,null,null,null,"MINEBALL",null,"Mines Exploration Pty. Ltd., Ballarat, Victoria","MINEBALL"]
[null,null,null,null,null,null,null,null,null,null,null,null,null,null,null,null,null,null,null,null,null,null,null,null,null,null,null,"MNTAUNK",null,"Moonta Laboratory, Unknown","MNTAUNK"]
[null,null,null,null,null,null,null,null,null,null,null,null,null,null,null,null,null,null,null,null,null,null,null,null,null,null,null,"NBHLMOO",null,"North Broken Hill Ltd., Moonta, SA","NBHLMOO"]
[null,null,null,null,null,null,null,null,null,null,null,null,null,null,null,null,null,null,null,null,null,null,null,null,null,null,null,"NCSTORAN",null,"Newcrest Laboratory Services, Orange, NSW","NCSTORAN"]
[null,null,null,null,null,null,null,null,null,null,null,null,null,null,null,null,null,null,null,null,null,null,null,null,null,null,null,"NCSTUNK",null,"Newcrest Laboratory Services, Unknown","NCSTUNK"]
[null,null,null,null,null,null,null,null,null,null,null,null,null,null,null,null,null,null,null,null,null,null,null,null,null,null,null,"NGMAKERV",null,"Natural Gypsum Miners Association, Kerang, Victoria","NGMAKERV"]
[null,null,null,null,null,null,null,null,null,null,null,null,null,null,null,null,null,null,null,null,null,null,null,null,null,null,null,"NMLUNK",null,"NML Laboratories, Unknown","NMLUNK"]
[null,null,null,null,null,null,null,null,null,null,null,null,null,null,null,null,null,null,null,null,null,null,null,null,null,null,null,"NMNTPER",null,"Newmont Laboratories, Perth, WA","NMNTPER"]
[null,null,null,null,null,null,null,null,null,null,null,null,null,null,null,null,null,null,null,null,null,null,null,null,null,null,null,"NOTREC",null,"Not recorded, N/A","NOTREC"]
[null,null,null,null,null,null,null,null,null,null,null,null,null,null,null,null,null,null,null,null,null,null,null,null,null,null,null,"NRTHPARK",null,"Northparkes Mines Laboratory, Parkes, NSW","NRTHPARK"]
[null,null,null,null,null,null,null,null,null,null,null,null,null,null,null,null,null,null,null,null,null,null,null,null,null,null,null,"NSLORAN",null,"NSL Laboratories, Orange, NSW","NSLORAN"]
[null,null,null,null,null,null,null,null,null,null,null,null,null,null,null,null,null,null,null,null,null,null,null,null,null,null,null,"NTHMUNK",null,"North Mine Laboratory, Unknown","NTHMUNK"]
[null,null,null,null,null,null,null,null,null,null,null,null,null,null,null,null,null,null,null,null,null,null,null,null,null,null,null,"ONSTBALL",null,"Onsite Laboratory Services Pty. Ltd., Ballarat, Victoria","ONSTBALL"]
[null,null,null,null,null,null,null,null,null,null,null,null,null,null,null,null,null,null,null,null,null,null,null,null,null,null,null,"ONSTBEN",null,"Onsite Laboratory Services Pty. Ltd., Bendigo, Victoria","ONSTBEN"]
[null,null,null,null,null,null,null,null,null,null,null,null,null,null,null,null,null,null,null,null,null,null,null,null,null,null,null,"ONSTBH",null,"Onsite Laboratory Services Pty. Ltd., Broken Hill, NSW","ONSTBH"]
[null,null,null,null,null,null,null,null,null,null,null,null,null,null,null,null,null,null,null,null,null,null,null,null,null,null,null,"ONSTCOW",null,"Onsite Laboratory Services Pty. Ltd., Lake Cowal, New South Wal","ONSTCOW"]
[null,null,null,null,null,null,null,null,null,null,null,null,null,null,null,null,null,null,null,null,null,null,null,null,null,null,null,"ONSTUNK",null,"Onsite Laboratory Services Pty. Ltd., Unknown","ONSTUNK"]
[null,null,null,null,null,null,null,null,null,null,null,null,null,null,null,null,null,null,null,null,null,null,null,null,null,null,null,"PARTEM",null,"Paragon Gold Mine Assay Laboratory, Temora, NSW","PARTEM"]
[null,null,null,null,null,null,null,null,null,null,null,null,null,null,null,null,null,null,null,null,null,null,null,null,null,null,null,"PGMUNK",null,"PGM onsite lab, Unknown","PGMUNK"]
[null,null,null,null,null,null,null,null,null,null,null,null,null,null,null,null,null,null,null,null,null,null,null,null,null,null,null,"PILBPER",null,"Pilbara Laboratories, Perth, WA","PILBPER"]
[null,null,null,null,null,null,null,null,null,null,null,null,null,null,null,null,null,null,null,null,null,null,null,null,null,null,null,"PILBTOWN",null,"Pilbara Laboratories, Townsville, Queensland","PILBTOWN"]
[null,null,null,null,null,null,null,null,null,null,null,null,null,null,null,null,null,null,null,null,null,null,null,null,null,null,null,"PILBUNK",null,"Pilbara Laboratories, Unknown","PILBUNK"]
[null,null,null,null,null,null,null,null,null,null,null,null,null,null,null,null,null,null,null,null,null,null,null,null,null,null,null,"PPPSYD",null,"Placer Prospecting (Australia) Pty. Ltd., Auburn, Sydney, NSW","PPPSYD"]
[null,null,null,null,null,null,null,null,null,null,null,null,null,null,null,null,null,null,null,null,null,null,null,null,null,null,null,"RDLPER",null,"Resource Development Laboratories, Perth, WA","RDLPER"]
[null,null,null,null,null,null,null,null,null,null,null,null,null,null,null,null,null,null,null,null,null,null,null,null,null,null,null,"RDLUNK",null,"RDL, Unknown","RDLUNK"]
[null,null,null,null,null,null,null,null,null,null,null,null,null,null,null,null,null,null,null,null,null,null,null,null,null,null,null,"RIHCUNK",null,"Royal IHC Robbins, Unknown","RIHCUNK"]
[null,null,null,null,null,null,null,null,null,null,null,null,null,null,null,null,null,null,null,null,null,null,null,null,null,null,null,"RIOUNK",null,"Rio Tinto Technology and Innovation, Unknown","RIOUNK"]
[null,null,null,null,null,null,null,null,null,null,null,null,null,null,null,null,null,null,null,null,null,null,null,null,null,null,null,"ROBBOW",null,"Robertson Research, Bowral, NSW","ROBBOW"]
[null,null,null,null,null,null,null,null,null,null,null,null,null,null,null,null,null,null,null,null,null,null,null,null,null,null,null,"ROSGUNK",null,"Rosgeofizika, Unknown","ROSGUNK"]
[null,null,null,null,null,null,null,null,null,null,null,null,null,null,null,null,null,null,null,null,null,null,null,null,null,null,null,"SALSYD",null,"Sydney Analytical Laboratories, Sydney, NSW","SALSYD"]
[null,null,null,null,null,null,null,null,null,null,null,null,null,null,null,null,null,null,null,null,null,null,null,null,null,null,null,"SAMSADEL",null,"S.A.M.S Laboratory, Adelaide, SA","SAMSADEL"]
[null,null,null,null,null,null,null,null,null,null,null,null,null,null,null,null,null,null,null,null,null,null,null,null,null,null,null,"SASPER",null,"Sheen Analytical Services, Perth, WA","SASPER"]
[null,null,null,null,null,null,null,null,null,null,null,null,null,null,null,null,null,null,null,null,null,null,null,null,null,null,null,"SESPER",null,"Sampey Exploration Services, Perth, WA","SESPER"]
[null,null,null,null,null,null,null,null,null,null,null,null,null,null,null,null,null,null,null,null,null,null,null,null,null,null,null,"SESUNK",null,"Sampey Exploration Services, Unknown","SESUNK"]
[null,null,null,null,null,null,null,null,null,null,null,null,null,null,null,null,null,null,null,null,null,null,null,null,null,null,null,"SGSCOB",null,"SGS, Cobar, NSW","SGSCOB"]
[null,null,null,null,null,null,null,null,null,null,null,null,null,null,null,null,null,null,null,null,null,null,null,null,null,null,null,"SGSKAL",null,"SGS, Kalgoorlie, WA","SGSKAL"]
[null,null,null,null,null,null,null,null,null,null,null,null,null,null,null,null,null,null,null,null,null,null,null,null,null,null,null,"SGSMACK",null,"SGS, Mackay, Queensland","SGSMACK"]
[null,null,null,null,null,null,null,null,null,null,null,null,null,null,null,null,null,null,null,null,null,null,null,null,null,null,null,"SGSPER",null,"SGS, Perth, WA","SGSPER"]
[null,null,null,null,null,null,null,null,null,null,null,null,null,null,null,null,null,null,null,null,null,null,null,null,null,null,null,"SGSSYD",null,"SGS, Sydney, NSW","SGSSYD"]
[null,null,null,null,null,null,null,null,null,null,null,null,null,null,null,null,null,null,null,null,null,null,null,null,null,null,null,"SGSTOWN",null,"SGS, Townsville, Queensland","SGSTOWN"]
[null,null,null,null,null,null,null,null,null,null,null,null,null,null,null,null,null,null,null,null,null,null,null,null,null,null,null,"SGSUNK",null,"SGS, Unknown","SGSUNK"]
[null,null,null,null,null,null,null,null,null,null,null,null,null,null,null,null,null,null,null,null,null,null,null,null,null,null,null,"SGSWWYA",null,"SGS, West Wyalong, NSW","SGSWWYA"]
[null,null,null,null,null,null,null,null,null,null,null,null,null,null,null,null,null,null,null,null,null,null,null,null,null,null,null,"SIBELUNK",null,"Sibelco Australia Limited, Unknown","SIBELUNK"]
[null,null,null,null,null,null,null,null,null,null,null,null,null,null,null,null,null,null,null,null,null,null,null,null,null,null,null,"SIMCOPER",null,"Simcoa Operations Pty Ltd., Perth, WA","SIMCOPER"]
[null,null,null,null,null,null,null,null,null,null,null,null,null,null,null,null,null,null,null,null,null,null,null,null,null,null,null,"SPECGWA",null,"Spectrolabs, Geraldton, WA","SPECGWA"]
[null,null,null,null,null,null,null,null,null,null,null,null,null,null,null,null,null,null,null,null,null,null,null,null,null,null,null,"SPECUNK",null,"Spectrolabs, Unknown","SPECUNK"]
[null,null,null,null,null,null,null,null,null,null,null,null,null,null,null,null,null,null,null,null,null,null,null,null,null,null,null,"SPESMELB",null,"Spectrometer Services, Melbourne, Victoria","SPESMELB"]
[null,null,null,null,null,null,null,null,null,null,null,null,null,null,null,null,null,null,null,null,null,null,null,null,null,null,null,"SPESUNK",null,"Spectrometer Services, Unknown","SPESUNK"]
[null,null,null,null,null,null,null,null,null,null,null,null,null,null,null,null,null,null,null,null,null,null,null,null,null,null,null,"SWEPMELB",null,"SWEP Analytical Laboratories, Melbourne, Victoria","SWEPMELB"]
[null,null,null,null,null,null,null,null,null,null,null,null,null,null,null,null,null,null,null,null,null,null,null,null,null,null,null,"TABLEQLD",null,"Tableland Analytical, Wondecla, Queensland","TABLEQLD"]
[null,null,null,null,null,null,null,null,null,null,null,null,null,null,null,null,null,null,null,null,null,null,null,null,null,null,null,"TCRRBNE",null,"Tetchem & Robertson Research, Brisbane, Queensland","TCRRBNE"]
[null,null,null,null,null,null,null,null,null,null,null,null,null,null,null,null,null,null,null,null,null,null,null,null,null,null,null,"TECHPER",null,"Labtech Pty. Ltd., Perth, WA","TECHPER"]
[null,null,null,null,null,null,null,null,null,null,null,null,null,null,null,null,null,null,null,null,null,null,null,null,null,null,null,"TECHUNK",null,"Labtech Pty. Ltd., Unknown","TECHUNK"]
[null,null,null,null,null,null,null,null,null,null,null,null,null,null,null,null,null,null,null,null,null,null,null,null,null,null,null,"TETBRIS",null,"Tetchem Laboratories, Brisbane, Queensland","TETBRIS"]
[null,null,null,null,null,null,null,null,null,null,null,null,null,null,null,null,null,null,null,null,null,null,null,null,null,null,null,"TETCNS",null,"Tetchem Laboratories Pty. Ltd., Cairns, Queensland","TETCNS"]
[null,null,null,null,null,null,null,null,null,null,null,null,null,null,null,null,null,null,null,null,null,null,null,null,null,null,null,"TETUNK",null,"Tetchem Laboratories Pty. Ltd., Unknown","TETUNK"]
[null,null,null,null,null,null,null,null,null,null,null,null,null,null,null,null,null,null,null,null,null,null,null,null,null,null,null,"THETASYD",null,"Twotheta XRF Services, Sydney, NSW","THETASYD"]
[null,null,null,null,null,null,null,null,null,null,null,null,null,null,null,null,null,null,null,null,null,null,null,null,null,null,null,"UCCUSA",null,"Union Carbide Corporation, New York, USA","UCCUSA"]
[null,null,null,null,null,null,null,null,null,null,null,null,null,null,null,null,null,null,null,null,null,null,null,null,null,null,null,"ULTRAPER",null,"UltraTrace Laboratories, Perth, WA","ULTRAPER"]
[null,null,null,null,null,null,null,null,null,null,null,null,null,null,null,null,null,null,null,null,null,null,null,null,null,null,null,"ULTRAUNK",null,"UltraTrace Laboratories, Unknown","ULTRAUNK"]
[null,null,null,null,null,null,null,null,null,null,null,null,null,null,null,null,null,null,null,null,null,null,null,null,null,null,null,"UNENSW",null,"University New England, NSW","UNENSW"]
[null,null,null,null,null,null,null,null,null,null,null,null,null,null,null,null,null,null,null,null,null,null,null,null,null,null,null,"UNIMBRA",null,"Unimin Australia Ltd., Braeside, Victoria","UNIMBRA"]
[null,null,null,null,null,null,null,null,null,null,null,null,null,null,null,null,null,null,null,null,null,null,null,null,null,null,null,"UNIMEL",null,"University of Melbourne, Melbourne, Victoria","UNIMEL"]
[null,null,null,null,null,null,null,null,null,null,null,null,null,null,null,null,null,null,null,null,null,null,null,null,null,null,null,"UNIMUNK",null,"Unimin Australia Ltd., Unknown","UNIMUNK"]
[null,null,null,null,null,null,null,null,null,null,null,null,null,null,null,null,null,null,null,null,null,null,null,null,null,null,null,"UNK",null,"Unknown, Unknown","UNK"]
[null,null,null,null,null,null,null,null,null,null,null,null,null,null,null,null,null,null,null,null,null,null,null,null,null,null,null,"UNSWSYD",null,"University of New South Wales, Sydney, NSW","UNSWSYD"]
[null,null,null,null,null,null,null,null,null,null,null,null,null,null,null,null,null,null,null,null,null,null,null,null,null,null,null,"USGSUSA",null,"United States Geological Survey Geochemical, USA","USGSUSA"]
[null,null,null,null,null,null,null,null,null,null,null,null,null,null,null,null,null,null,null,null,null,null,null,null,null,null,null,"WARSYD",null,"Warman International, Sydney, NSW","WARSYD"]
[null,null,null,null,null,null,null,null,null,null,null,null,null,null,null,null,null,null,null,null,null,null,null,null,null,null,null,"WGEOLBWA",null,"Western Geolabs, Bellavue, WA","WGEOLBWA"]
[null,null,null,null,null,null,null,null,null,null,null,null,null,null,null,null,null,null,null,null,null,null,null,null,null,null,null,"WMCBALL",null,"Western Mining Corporation Ltd. Laboratory, Ballarat, Victoria","WMCBALL"]
[null,null,null,null,null,null,null,null,null,null,null,null,null,null,null,null,null,null,null,null,null,null,null,null,null,null,null,"XRAYCANA",null,"X-Ray Assay Laboratories, Toronto, Canada","XRAYCANA"]
[null,null,null,null,null,null,null,null,null,null,null,null,null,null,null,null,null,null,null,null,null,null,null,null,null,null,null,"ZINCBROK",null,"Zinc Corporation, Broken Hill, NSW","ZINCBROK"]

{"sheet":"FileNames","index":18,"n_rows":42,"n_cols":16,"rows_kept":42,"cut":false,"hidden":true,"merged":[]}
[{"$f":"IF('General Information'!E5=\"Annual (A)\", \"A\", IF('General Information'!E5=\"Final (F)\", \"F\", IF('General Information'!E5=\"Relinquishment (R)\", \"R\", \"\")))","v":""},null,null,null,"Cross Sheets"]
[{"$f":"TEXT('General Information'!E6,\"YYYYMM\")","v":"190001"}]
[{"$f":"'General Information'!E7","v":0}]
[{"$f":"_xlfn.CONCAT(A3,\"_\",A2,\"_\",A1)","v":"0_190001_"},null,null,null,"Drilling/svy/dh geo has this:",null,null,null,"code","active?","code",null,"full name",null,null,"Cross Data"]
[null,null,null,null,"Location_data_file","EL4242_201109_A_12_DrillCollars.txt ",null,"Location",{"$f":"$A$4","v":"0_190001_"},null,"LOC(SL4)",{"$f":"0+J5","v":0},{"$f":"_xlfn.CONCAT(I5, \"_\", TEXT(L5, \"00\"), \"_\", K5, \".csv\")","v":"0_190001__00_LOC(SL4).csv"}]
[null,null,null,null,"Downhole_lithology_data_file","EL4242_201109_A_13_lithology.txt ",null,"DH svy",{"$f":"$A$4","v":"0_190001_"},1,"DH_SVY(DS4)",{"$f":"L5+J6","v":1},{"$f":"_xlfn.CONCAT(I6, \"_\", TEXT(L6, \"00\"), \"_\", K6, \".csv\")","v":"0_190001__01_DH_SVY(DS4).csv"}]
[null,null,null,null,"Downhole_geochem_data_file","EL4242_201109_A_14_DownholeGeochem.txt",null,"DH geo","0_190001_",null,"DH_GEOCHEM(DG4)",1,"0_190001__01_DH_GEOCHEM(DG4).csv"]
[null,null,null,null,"Downhole_survey_data_file","EL4242_201109_A_15_DownholeSurveys.txt",null,"Lith code file","0_190001_",null,"LITH_DATA_DICTIONARY(LDD4)",1,{"$f":"_xlfn.CONCAT(I8, \"_\", TEXT(L8, \"00\"), \"_\", K8, \".csv\")","v":"0_190001__01_LITH_DATA_DICTIONARY(LDD4).csv"}]
[null,null,null,null,"Lithology_code_file","Company_data_dictionary",null,"Dh lith","0_190001_",null,"DH_LITH(DL4)",1,{"$f":"_xlfn.CONCAT(I9, \"_\", TEXT(L9, \"00\"), \"_\", K9, \".csv\")","v":"0_190001__01_DH_LITH(DL4).csv"}]
[null,null,null,null,null,null,null,"Alteration","0_190001_",null,"DH_ALTERATION(DL4)",1,"0_190001__01_DH_ALTERATION(DL4).csv"]
[null,null,null,null,null,null,null,"Magsusc","0_190001_",null,"DH_MAGSUSC(DL4)",1,"0_190001__01_DH_MAGSUSC(DL4).csv"]
[null,null,null,null,null,null,null,"Vein","0_190001_",null,"DH_VEIN(DL4)",1,"0_190001__01_DH_VEIN(DL4).csv"]
[null,null,null,null,null,null,null,"Recovery","0_190001_",null,"DH_RECOVERY(DL4)",1,"0_190001__01_DH_RECOVERY(DL4).csv"]
[null,null,null,null,null,null,null,"Weathering","0_190001_",null,"DH_WEATHERING(DL4)",1,"0_190001__01_DH_WEATHERING(DL4).csv"]
[null,null,null,null,"Logging has this:",null,null,"Other","0_190001_",null,"DH_OTHER(DL4)",1,"0_190001__01_DH_OTHER(DL4).csv"]
[null,null,null,null,"Location_data_file","EL4242_201109_A_12_DrillCollars.txt ",null,"Surf geo","0_190001_",null,"SURF_GEOCHEM(SG4)",1,"0_190001__01_SURF_GEOCHEM(SG4).csv",null,null,"dsfdsf_202401_F_02_SURF_GEOCHEM(SG4).csv"]
[null,null,null,null,"Lithology_data_file","EL4242_201109_A_13_lithology.txt ",null,"XRFDH","0_190001_",null,"XRF_SURF_GEOCHEM(SG4_PXRF)",{"$f":"L16+J17","v":1},"0_190001__01_XRF_SURF_GEOCHEM(SG4_PXRF).csv"]
[null,null,null,null,"Downhole_geochem_data_file","EL4242_201109_A_14_DownholeGeochem.txt",null,"XRFSS","0_190001_",null,"XRF_DH_GEOCHEM(DG4_PXRF)",1,"0_190001__01_XRF_DH_GEOCHEM(DG4_PXRF).csv"]
[null,null,null,null,"Downhole_survey_data_file","EL4242_201109_A_15_DownholeSurveys.txt"]
[null,null,null,null,"Lithology_code_file","Company_data_dictionary"]
[null,null,null,null,"Alteration_data_file","EL4242_201109_A_15_alteration.txt"]
[null,null,null,null,"Magsusc_data_file","EL4242_201109_A_15_MagSusData.txt"]
[null,null,null,null,"Vein_data_file","EL4242_201109_A_15_veins.txt"]
[null,null,null,null,"Recovery_data_file","EL4242_201109_A_15_recovery.txt"]
[null,null,null,null,"Weathering_data_file","EL4242_201109_A_15_weathering.txt"]
[null,null,null,null,"Other_data_file","EL4242_201109_A_15_otherLog.txt"]
[]
[]
[null,null,null,null,"Surface geochem has this:"]
[null,null,null,null,"SurfGeochem_data_file","EL4242_201109_A_08_SurfaceGeochem.txt"]
[null,null,null,null,"Lithology_code_file","Company_data_dictionary"]
[]
[]
[null,null,null,null,"Surface xrf has:"]
[null,null,null,null,"SurfGeochem_data_file","EL4242_201109_A_08_SurfaceGeochem.txt"]
[]
[null,null,null,null,"DH xrf has this:"]
[null,null,null,null,"Location_data_file","EL4242_201109_A_12_DrillCollars.txt "]
[null,null,null,null,"Downhole_lithology_data_file","EL4242_201109_A_13_lithology.txt "]
[null,null,null,null,"Downhole_geochem_data_file","EL4242_201109_A_14_DownholeGeochem.txt"]
[null,null,null,null,"Downhole_survey_data_file","EL4242_201109_A_15_DownholeSurveys.txt"]
[null,null,null,null,"Lithology_code_file","Company_data_dictionary"]

{"sheet":"SL4Print","index":19,"n_rows":34,"n_cols":17,"rows_kept":34,"cut":false,"hidden":true,"merged":[]}
["H0001","Report_Type",{"$f":"IF('General Information'!E5=\"Annual (A)\",\"A\",IF('General Information'!E5=\"Final (F)\",\"F\",IF('General Information'!E5=\"Annual and Final (F)\",\"F\",IF('General Information'!E5=\"Relinquishment (R)\",\"R\",\"\"))))","v":""}]
["H0002","Version",4.5999999999999996]
["H0003","Date_Generated"]
["H0004","Reporting_period_end_date"]
["H0005","State","NSW"]
["H0100","Tenement_no"]
["H0101","Tenement_holder"]
["H0102","Project_name"]
["H0106","Tenement_Operator"]
["H0200","Start_date_of_data_acquisition"]
["H0201","End_date_of_data_acquisition"]
["H0202","Template_format","SL4"]
["H0203","Number_of_data_records"]
["H0300","Related_data_filenames"]
["H0301","Location_data_file"]
["H0302","Downhole_survey_data_file"]
["H0303","Downhole_geochem_data_file"]
["H0304","Lithology_code_file"]
["H0307","Downhole_lithology_data_file"]
["H0400","Drilling_code"]
["H0401","Drill_Contractor"]
["H0402","Description"]
["H0500","Feature_located","Hole Collar"]
["H0501","Geodetic_datum",{"$f":"VLOOKUP('General Information'!$E$53,Lookups!$C$2:$I$21,2,FALSE)","v":{"$error":"#N/A"}}]
["H0502","Vertical_datum","AHD"]
["H0503","Projection",{"$f":"VLOOKUP('General Information'!$E$53,Lookups!$C$2:$I$21,4,FALSE)","v":{"$error":"#N/A"}}]
["H0530","Coordinate_system",{"$f":"VLOOKUP('General Information'!$E$53,Lookups!$C$2:$I$21,3,FALSE)","v":{"$error":"#N/A"}}]
["H0531","Projection_zone",{"$f":"IF(VLOOKUP('General Information'!$E$53,Lookups!$C$2:$I$21,7,FALSE)=0,\"\",VLOOKUP('General Information'!$E$53,Lookups!$C$2:$I$21,7,FALSE))","v":{"$error":"#N/A"}}]
["H0532","Surface_Location_Surveying_instrument"]
["H0533","Surface_Location_Surveying_company"]
["H0900","Remarks"]
["H1000","Hole_ID",null,null,"Elevation","TD","Drill_code","Dip","Azimuth","Date_Drilled","Surv_Method","Surv_Company","Drill_Company","Prospect","BOH_Lith","BOH_Lith_desc","Comments"]
["H1001","Units","Metres","Metres","Metres","Metres",null,"Degrees"]
["H1004","Accuracy"]

{"sheet":"DS4Print","index":20,"n_rows":26,"n_cols":11,"rows_kept":26,"cut":false,"hidden":true,"merged":[]}
["H0001","Report_Type",{"$f":"IF('General Information'!E5=\"Annual (A)\",\"A\",IF('General Information'!E5=\"Final (F)\",\"F\",IF('General Information'!E5=\"Annual and Final (F)\",\"F\",IF('General Information'!E5=\"Relinquishment (R)\",\"R\",\"\"))))","v":""}]
["H0002","Version",4.5999999999999996]
["H0003","Date_Generated"]
["H0004","Reporting_period_end_date"]
["H0005","State","NSW"]
["H0100","Tenement_no"]
["H0101","Tenement_holder"]
["H0102","Project_name"]
["H0106","Tenement_Operator"]
["H0200","Start_date_of_data_acquisition"]
["H0201","End_date_of_data_acquisition"]
["H0202","Template_format","DS4"]
["H0203","Number_of_data_records"]
["H0300","Related_data_filenames"]
["H0301","Location_data_file"]
["H0302","Downhole_survey_data_file"]
["H0303","Downhole_geochem_data_file"]
["H0304","Lithology_code_file"]
["H0307","Downhole_lithology_data_file"]
["H0502","Vertical_datum","AHD"]
["H0534","Downhole_Direction_Survey_Instrument"]
["H0535","Downhole_Direction_Survey_Company"]
["H0900","Remarks"]
["H1000","Hole_ID","Depth","Inclination","Azimuth_MAG","Azimuth_UTM","Azimuth_True","Surv_Method","Surv_Company","Priority","Comments"]
["H1001","Units","Metres","Degrees","Degrees","Degrees","Degrees"]
["H1004","Accuracy"]

{"sheet":"LDD4Print","index":21,"n_rows":12,"n_cols":5,"rows_kept":12,"cut":false,"hidden":true,"merged":[]}
["H0001","Report_Type",{"$f":"IF('General Information'!E5=\"Annual (A)\",\"A\",IF('General Information'!E5=\"Final (F)\",\"F\",IF('General Information'!E5=\"Annual and Final (F)\",\"F\",IF('General Information'!E5=\"Relinquishment (R)\",\"R\",\"\"))))","v":""}]
["H0002","Version",4.5999999999999996]
["H0003","Date_generated"]
["H0004","Reporting_period_end_date"]
["H0005","State","NSW"]
["H0100","Tenement_no"]
["H0101","Tenement_holder"]
["H0102","Project_name"]
["H0106","Tenement_Operator"]
["H0900","Remarks"]
["H1000","Column_type","Column_name","Code","Description"]
["H1001","Units"]

{"sheet":"DL4Print","index":22,"n_rows":28,"n_cols":52,"rows_kept":28,"cut":false,"hidden":true,"merged":[]}
["H0001","Report_Type",{"$f":"IF('General Information'!E5=\"Annual (A)\",\"A\",IF('General Information'!E5=\"Final (F)\",\"F\",IF('General Information'!E5=\"Annual and Final (F)\",\"F\",IF('General Information'!E5=\"Relinquishment (R)\",\"R\",\"\"))))","v":""}]
["H0002","Version",4.5999999999999996]
["H0003","Date_generated"]
["H0004","Reporting_period_end_date"]
["H0005","State","NSW"]
["H0100","Tenement_no"]
["H0101","Tenement_holder"]
["H0102","Project_name"]
["H0106","Tenement_Operator"]
["H0200","Start_date_of_data_acquisition"]
["H0201","End_date_of_data_acquisition"]
["H0202","Template_format","DL4"]
["H0203","Number_of_data_records"]
["H0300","Related_data_filenames"]
["H0301","Location_data_file"]
["H0302","Downhole_survey_data_file"]
["H0303","Downhole_geochem_data_file"]
["H0304","Lithology_code_file"]
["H0307","Lithology_data_file"]
["H0313","Alteration_data_file"]
["H0314","Magsusc_data_file"]
["H0315","Vein_data_file"]
["H0316","Recovery_data_file"]
["H0317","Weathering_data_file"]
["H0318","Other_data_file"]
["H0900","Remarks"]
["H1000","Hole_ID","From","To","Log_Date","Comments"]
["H1001","Units","Metres","Metres",null,null,null,null,null,null,null,null,null,null,null,null,null,null,null,null,null,null,null,null,null,null,null,null,null,null,null,null,null,null,null,null,null,null,null,null,null,null,null,null,null,null,null,null,null,null,null,{"$error":"#N/A"}]

{"sheet":"DL4aPrint","index":23,"n_rows":28,"n_cols":52,"rows_kept":28,"cut":false,"hidden":true,"merged":[]}
["H0001","Report_Type",{"$f":"IF('General Information'!E5=\"Annual (A)\",\"A\",IF('General Information'!E5=\"Final (F)\",\"F\",IF('General Information'!E5=\"Annual and Final (F)\",\"F\",IF('General Information'!E5=\"Relinquishment (R)\",\"R\",\"\"))))","v":""}]
["H0002","Version",4.5999999999999996]
["H0003","Date_generated"]
["H0004","Reporting_period_end_date"]
["H0005","State","NSW"]
["H0100","Tenement_no"]
["H0101","Tenement_holder"]
["H0102","Project_name"]
["H0106","Tenement_Operator"]
["H0200","Start_date_of_data_acquisition"]
["H0201","End_date_of_data_acquisition"]
["H0202","Template_format","DL4ALTERATION"]
["H0203","Number_of_data_records"]
["H0300","Related_data_filenames"]
["H0301","Location_data_file"]
["H0302","Downhole_survey_data_file"]
["H0303","Downhole_geochem_data_file"]
["H0304","Lithology_code_file"]
["H0307","Lithology_data_file"]
["H0313","Alteration_data_file"]
["H0314","Magsusc_data_file"]
["H0315","Vein_data_file"]
["H0316","Recovery_data_file"]
["H0317","Weathering_data_file"]
["H0318","Other_data_file"]
["H0900","Remarks"]
["H1000","Hole_ID","From","To","Log_Date","Comments"]
["H1001","Units","Metres","Metres",null,null,"None",null,null,null,null,null,null,null,null,null,null,null,null,null,null,null,null,null,null,null,null,null,null,null,null,null,null,null,null,null,null,null,null,null,null,null,null,null,null,null,null,null,null,null,null,{"$error":"#N/A"}]

{"sheet":"DL4bPrint","index":24,"n_rows":28,"n_cols":52,"rows_kept":28,"cut":false,"hidden":true,"merged":[]}
["H0001","Report_Type",{"$f":"IF('General Information'!E5=\"Annual (A)\",\"A\",IF('General Information'!E5=\"Final (F)\",\"F\",IF('General Information'!E5=\"Annual and Final (F)\",\"F\",IF('General Information'!E5=\"Relinquishment (R)\",\"R\",\"\"))))","v":""}]
["H0002","Version",4.5999999999999996]
["H0003","Date_generated"]
["H0004","Reporting_period_end_date"]
["H0005","State","NSW"]
["H0100","Tenement_no"]
["H0101","Tenement_holder"]
["H0102","Project_name"]
["H0106","Tenement_Operator"]
["H0200","Start_date_of_data_acquisition"]
["H0201","End_date_of_data_acquisition"]
["H0202","Template_format","DL4MAGSUSC"]
["H0203","Number_of_data_records"]
["H0300","Related_data_filenames"]
["H0301","Location_data_file"]
["H0302","Downhole_survey_data_file"]
["H0303","Downhole_geochem_data_file"]
["H0304","Lithology_code_file"]
["H0307","Lithology_data_file"]
["H0313","Alteration_data_file"]
["H0314","Magsusc_data_file"]
["H0315","Vein_data_file"]
["H0316","Recovery_data_file"]
["H0317","Weathering_data_file"]
["H0318","Other_data_file"]
["H0900","Remarks"]
["H1000","Hole_ID","From","To","Log_Date","Comments"]
["H1001","Units","Metres","Metres",null,null,null,null,null,null,null,null,null,null,null,null,null,null,null,null,null,null,null,null,null,null,null,null,null,null,null,null,null,null,null,null,null,null,null,null,null,null,null,null,null,null,null,null,null,null,null,{"$error":"#N/A"}]

{"sheet":"DL4cPrint","index":25,"n_rows":28,"n_cols":6,"rows_kept":28,"cut":false,"hidden":true,"merged":[]}
["H0001","Report_Type",{"$f":"IF('General Information'!E5=\"Annual (A)\",\"A\",IF('General Information'!E5=\"Final (F)\",\"F\",IF('General Information'!E5=\"Annual and Final (F)\",\"F\",IF('General Information'!E5=\"Relinquishment (R)\",\"R\",\"\"))))","v":""}]
["H0002","Version",4.5999999999999996]
["H0003","Date_generated"]
["H0004","Reporting_period_end_date"]
["H0005","State","NSW"]
["H0100","Tenement_no"]
["H0101","Tenement_holder"]
["H0102","Project_name"]
["H0106","Tenement_Operator"]
["H0200","Start_date_of_data_acquisition"]
["H0201","End_date_of_data_acquisition"]
["H0202","Template_format","DL4VEIN"]
["H0203","Number_of_data_records"]
["H0300","Related_data_filenames"]
["H0301","Location_data_file"]
["H0302","Downhole_survey_data_file"]
["H0303","Downhole_geochem_data_file"]
["H0304","Lithology_code_file"]
["H0307","Lithology_data_file"]
["H0313","Alteration_data_file"]
["H0314","Magsusc_data_file"]
["H0315","Vein_data_file"]
["H0316","Recovery_data_file"]
["H0317","Weathering_data_file"]
["H0318","Other_data_file"]
["H0900","Remarks"]
["H1000","Hole_ID","From","To","Log_Date","Comments"]
["H1001","Units","Metres","Metres"]

{"sheet":"DL4dPrint","index":26,"n_rows":28,"n_cols":6,"rows_kept":28,"cut":false,"hidden":true,"merged":[]}
["H0001","Report_Type",{"$f":"IF('General Information'!E5=\"Annual (A)\",\"A\",IF('General Information'!E5=\"Final (F)\",\"F\",IF('General Information'!E5=\"Annual and Final (F)\",\"F\",IF('General Information'!E5=\"Relinquishment (R)\",\"R\",\"\"))))","v":""}]
["H0002","Version",4.5999999999999996]
["H0003","Date_generated"]
["H0004","Reporting_period_end_date"]
["H0005","State","NSW"]
["H0100","Tenement_no"]
["H0101","Tenement_holder"]
["H0102","Project_name"]
["H0106","Tenement_Operator"]
["H0200","Start_date_of_data_acquisition"]
["H0201","End_date_of_data_acquisition"]
["H0202","Template_format","DL4RECOVERY"]
["H0203","Number_of_data_records"]
["H0300","Related_data_filenames"]
["H0301","Location_data_file"]
["H0302","Downhole_survey_data_file"]
["H0303","Downhole_geochem_data_file"]
["H0304","Lithology_code_file"]
["H0307","Lithology_data_file"]
["H0313","Alteration_data_file"]
["H0314","Magsusc_data_file"]
["H0315","Vein_data_file"]
["H0316","Recovery_data_file"]
["H0317","Weathering_data_file"]
["H0318","Other_data_file"]
["H0900","Remarks"]
["H1000","Hole_ID","From","To","Log_Date","Comments"]
["H1001","Units","Metres","Metres"]

{"sheet":"DL4ePrint","index":27,"n_rows":28,"n_cols":6,"rows_kept":28,"cut":false,"hidden":true,"merged":[]}
["H0001","Report_Type",{"$f":"IF('General Information'!E5=\"Annual (A)\",\"A\",IF('General Information'!E5=\"Final (F)\",\"F\",IF('General Information'!E5=\"Annual and Final (F)\",\"F\",IF('General Information'!E5=\"Relinquishment (R)\",\"R\",\"\"))))","v":""}]
["H0002","Version",4.5999999999999996]
["H0003","Date_generated"]
["H0004","Reporting_period_end_date"]
["H0005","State","NSW"]
["H0100","Tenement_no"]
["H0101","Tenement_holder"]
["H0102","Project_name"]
["H0106","Tenement_Operator"]
["H0200","Start_date_of_data_acquisition"]
["H0201","End_date_of_data_acquisition"]
["H0202","Template_format","DL4WEATHERING"]
["H0203","Number_of_data_records"]
["H0300","Related_data_filenames"]
["H0301","Location_data_file"]
["H0302","Downhole_survey_data_file"]
["H0303","Downhole_geochem_data_file"]
["H0304","Lithology_code_file"]
["H0307","Lithology_data_file"]
["H0313","Alteration_data_file"]
["H0314","Magsusc_data_file"]
["H0315","Vein_data_file"]
["H0316","Recovery_data_file"]
["H0317","Weathering_data_file"]
["H0318","Other_data_file"]
["H0900","Remarks"]
["H1000","Hole_ID","From","To","Log_Date","Comments"]
["H1001","Units","Metres","Metres"]

{"sheet":"DL4fPrint","index":28,"n_rows":28,"n_cols":6,"rows_kept":28,"cut":false,"hidden":true,"merged":[]}
["H0001","Report_Type",{"$f":"IF('General Information'!E5=\"Annual (A)\",\"A\",IF('General Information'!E5=\"Final (F)\",\"F\",IF('General Information'!E5=\"Annual and Final (F)\",\"F\",IF('General Information'!E5=\"Relinquishment (R)\",\"R\",\"\"))))","v":""}]
["H0002","Version",4.5999999999999996]
["H0003","Date_generated"]
["H0004","Reporting_period_end_date"]
["H0005","State","NSW"]
["H0100","Tenement_no"]
["H0101","Tenement_holder"]
["H0102","Project_name"]
["H0106","Tenement_Operator"]
["H0200","Start_date_of_data_acquisition"]
["H0201","End_date_of_data_acquisition"]
["H0202","Template_format","DL4OTHER"]
["H0203","Number_of_data_records"]
["H0300","Related_data_filenames"]
["H0301","Location_data_file"]
["H0302","Downhole_survey_data_file"]
["H0303","Downhole_geochem_data_file"]
["H0304","Lithology_code_file"]
["H0307","Lithology_data_file"]
["H0313","Alteration_data_file"]
["H0314","Magsusc_data_file"]
["H0315","Vein_data_file"]
["H0316","Recovery_data_file"]
["H0317","Weathering_data_file"]
["H0318","Other_data_file"]
["H0900","Remarks"]
["H1000","Hole_ID","From","To","Log_Date","Comments"]
["H1001","Units","Metres","Metres"]

{"sheet":"DG4Print","index":29,"n_rows":35,"n_cols":17,"rows_kept":35,"cut":false,"hidden":true,"merged":[]}
["H0001","Report_Type",{"$f":"IF('General Information'!E5=\"Annual (A)\",\"A\",IF('General Information'!E5=\"Final (F)\",\"F\",IF('General Information'!E5=\"Annual and Final (F)\",\"F\",IF('General Information'!E5=\"Relinquishment (R)\",\"R\",\"\"))))","v":""}]
["H0002","Version",4.5999999999999996]
["H0003","Date_Generated"]
["H0004","Reporting_period_end_date"]
["H0005","State","NSW"]
["H0100","Tenement_no"]
["H0101","Tenement_holder"]
["H0102","Project_name"]
["H0106","Tenement_Operator"]
["H0200","Start_date_of_data_acquisition"]
["H0201","End_date_of_data_acquisition"]
["H0202","Template_format","DG4"]
["H0203","Number_of_data_records"]
["H0300","Related_data_filenames"]
["H0301","Location_data_file"]
["H0302","Downhole_survey_data_file"]
["H0303","Downhole_geochem_data_file"]
["H0304","Lithology_code_file"]
["H0307","Downhole_lithology_data_file"]
["H0600","Sample_code"]
["H0601","Sample_type",{"$f":"IF(C20=\"\", \"\", IF(ISNUMBER(MATCH(C20, 'GSNSW Codes'!$B$33:$B$42, 0)), VLOOKUP(C20, 'GSNSW Codes'!$B$33:$C$42, 2, FALSE), \"\"))","v":""},{"$f":"IF(D20=\"\", \"\", IF(ISNUMBER(MATCH(D20, 'GSNSW Codes'!$B$33:$B$42, 0)), VLOOKUP(D20, 'GSNSW Codes'!$B$33:$C$42, 2, FALSE), \"\"))","v":""},{"$f":"IF(E20=\"\", \"\", IF(ISNUMBER(MATCH(E20, 'GSNSW Codes'!$B$33:$B$42, 0)), VLOOKUP(E20, 'GSNSW Codes'!$B$33:$C$42, 2, FALSE), \"\"))","v":""},{"$f":"IF(F20=\"\", \"\", IF(ISNUMBER(MATCH(F20, 'GSNSW Codes'!$B$33:$B$42, 0)), VLOOKUP(F20, 'GSNSW Codes'!$B$33:$C$42, 2, FALSE), \"\"))","v":""},{"$f":"IF(G20=\"\", \"\", IF(ISNUMBER(MATCH(G20, 'GSNSW Codes'!$B$33:$B$42, 0)), VLOOKUP(G20, 'GSNSW Codes'!$B$33:$C$42, 2, FALSE), \"\"))","v":""},{"$f":"IF(H20=\"\", \"\", IF(ISNUMBER(MATCH(H20, 'GSNSW Codes'!$B$33:$B$42, 0)), VLOOKUP(H20, 'GSNSW Codes'!$B$33:$C$42, 2, FALSE), \"\"))","v":""},{"$f":"IF(I20=\"\", \"\", IF(ISNUMBER(MATCH(I20, 'GSNSW Codes'!$B$33:$B$42, 0)), VLOOKUP(I20, 'GSNSW Codes'!$B$33:$C$42, 2, FALSE), \"\"))","v":""},{"$f":"IF(J20=\"\", \"\", IF(ISNUMBER(MATCH(J20, 'GSNSW Codes'!$B$33:$B$42, 0)), VLOOKUP(J20, 'GSNSW Codes'!$B$33:$C$42, 2, FALSE), \"\"))","v":""},{"$f":"IF(K20=\"\", \"\", IF(ISNUMBER(MATCH(K20, 'GSNSW Codes'!$B$33:$B$42, 0)), VLOOKUP(K20, 'GSNSW Codes'!$B$33:$C$42, 2, FALSE), \"\"))","v":""},{"$f":"IF(L20=\"\", \"\", IF(ISNUMBER(MATCH(L20, 'GSNSW Codes'!$B$33:$B$42, 0)), VLOOKUP(L20, 'GSNSW Codes'!$B$33:$C$42, 2, FALSE), \"\"))","v":""},{"$f":"IF(M20=\"\", \"\", IF(ISNUMBER(MATCH(M20, 'GSNSW Codes'!$B$33:$B$42, 0)), VLOOKUP(M20, 'GSNSW Codes'!$B$33:$C$42, 2, FALSE), \"\"))","v":""},{"$f":"IF(N20=\"\", \"\", IF(ISNUMBER(MATCH(N20, 'GSNSW Codes'!$B$33:$B$42, 0)), VLOOKUP(N20, 'GSNSW Codes'!$B$33:$C$42, 2, FALSE), \"\"))","v":""},{"$f":"IF(O20=\"\", \"\", IF(ISNUMBER(MATCH(O20, 'GSNSW Codes'!$B$33:$B$42, 0)), VLOOKUP(O20, 'GSNSW Codes'!$B$33:$C$42, 2, FALSE), \"\"))","v":""},{"$f":"IF(P20=\"\", \"\", IF(ISNUMBER(MATCH(P20, 'GSNSW Codes'!$B$33:$B$42, 0)), VLOOKUP(P20, 'GSNSW Codes'!$B$33:$C$42, 2, FALSE), \"\"))","v":""},{"$f":"IF(Q20=\"\", \"\", IF(ISNUMBER(MATCH(Q20, 'GSNSW Codes'!$B$33:$B$42, 0)), VLOOKUP(Q20, 'GSNSW Codes'!$B$33:$C$42, 2, FALSE), \"\"))","v":""}]
["H0602","Sample_Description"]
["H0700","Sample_preparation_code"]
["H0701","Sample_preparation_details"]
["H0702","Job_Number"]
["H0800","Assay_code"]
["H0801","Assay_description"]
["H0802","Assay_company",{"$f":"IF(OR('General Information'!$L$204=\"\", ISERROR(VLOOKUP('General Information'!$L$204, Lookups!$AD$2:$AE$200, 2, FALSE))), \"\", VLOOKUP('General Information'!$L$204, Lookups!$AD$2:$AE$200, 2, FALSE))","v":""},{"$f":"IF(OR('General Information'!$L$205=\"\", ISERROR(VLOOKUP('General Information'!$L$205, Lookups!$AD$2:$AE$200, 2, FALSE))), \"\", VLOOKUP('General Information'!$L$205, Lookups!$AD$2:$AE$200, 2, FALSE))","v":""},{"$f":"IF(OR('General Information'!$L$206=\"\", ISERROR(VLOOKUP('General Information'!$L$206, Lookups!$AD$2:$AE$200, 2, FALSE))), \"\", VLOOKUP('General Information'!$L$206, Lookups!$AD$2:$AE$200, 2, FALSE))","v":""},{"$f":"IF(OR('General Information'!$L$207=\"\", ISERROR(VLOOKUP('General Information'!$L$207, Lookups!$AD$2:$AE$200, 2, FALSE))), \"\", VLOOKUP('General Information'!$L$207, Lookups!$AD$2:$AE$200, 2, FALSE))","v":""},{"$f":"IF(OR('General Information'!$L$208=\"\", ISERROR(VLOOKUP('General Information'!$L$208, Lookups!$AD$2:$AE$200, 2, FALSE))), \"\", VLOOKUP('General Information'!$L$208, Lookups!$AD$2:$AE$200, 2, FALSE))","v":""},{"$f":"IF(OR('General Information'!$L$209=\"\", ISERROR(VLOOKUP('General Information'!$L$209, Lookups!$AD$2:$AE$200, 2, FALSE))), \"\", VLOOKUP('General Information'!$L$209, Lookups!$AD$2:$AE$200, 2, FALSE))","v":""},{"$f":"IF(OR('General Information'!$L$210=\"\", ISERROR(VLOOKUP('General Information'!$L$210, Lookups!$AD$2:$AE$200, 2, FALSE))), \"\", VLOOKUP('General Information'!$L$210, Lookups!$AD$2:$AE$200, 2, FALSE))","v":""},{"$f":"IF(OR('General Information'!$L$211=\"\", ISERROR(VLOOKUP('General Information'!$L$211, Lookups!$AD$2:$AE$200, 2, FALSE))), \"\", VLOOKUP('General Information'!$L$211, Lookups!$AD$2:$AE$200, 2, FALSE))","v":""},{"$f":"IF(OR('General Information'!$L$212=\"\", ISERROR(VLOOKUP('General Information'!$L$212, Lookups!$AD$2:$AE$200, 2, FALSE))), \"\", VLOOKUP('General Information'!$L$212, Lookups!$AD$2:$AE$200, 2, FALSE))","v":""},{"$f":"IF(OR('General Information'!$L$213=\"\", ISERROR(VLOOKUP('General Information'!$L$213, Lookups!$AD$2:$AE$200, 2, FALSE))), \"\", VLOOKUP('General Information'!$L$213, Lookups!$AD$2:$AE$200, 2, FALSE))","v":""},{"$f":"IF(OR('General Information'!$L$214=\"\", ISERROR(VLOOKUP('General Information'!$L$214, Lookups!$AD$2:$AE$200, 2, FALSE))), \"\", VLOOKUP('General Information'!$L$214, Lookups!$AD$2:$AE$200, 2, FALSE))","v":""},{"$f":"IF(OR('General Information'!$L$215=\"\", ISERROR(VLOOKUP('General Information'!$L$215, Lookups!$AD$2:$AE$200, 2, FALSE))), \"\", VLOOKUP('General Information'!$L$215, Lookups!$AD$2:$AE$200, 2, FALSE))","v":""},{"$f":"IF(OR('General Information'!$L$216=\"\", ISERROR(VLOOKUP('General Information'!$L$216, Lookups!$AD$2:$AE$200, 2, FALSE))), \"\", VLOOKUP('General Information'!$L$216, Lookups!$AD$2:$AE$200, 2, FALSE))","v":""},{"$f":"IF(OR('General Information'!$L$217=\"\", ISERROR(VLOOKUP('General Information'!$L$217, Lookups!$AD$2:$AE$200, 2, FALSE))), \"\", VLOOKUP('General Information'!$L$217, Lookups!$AD$2:$AE$200, 2, FALSE))","v":""},{"$f":"IF(OR('General Information'!$L$218=\"\", ISERROR(VLOOKUP('General Information'!$L$218, Lookups!$AD$2:$AE$200, 2, FALSE))), \"\", VLOOKUP('General Information'!$L$218, Lookups!$AD$2:$AE$200, 2, FALSE))","v":""}]
["H0900","Remarks"]
["H1000","Hole_ID","Sample_ID","From","To","Sample_code","Assay_Job_No","Sample_Date","Comments"]
["H1001","Unit of Measure",null,"Metres","Metres"]
["H1002","Assay Code"]
["H1003","Lower_detection_limits"]
["H1005","Upper_detection_limits"]
["H1007","Assay_Company_code"]

{"sheet":"SG4Print","index":30,"n_rows":41,"n_cols":17,"rows_kept":41,"cut":false,"hidden":true,"merged":[]}
["H0001","Report_Type",{"$f":"IF('General Information'!E5=\"Annual (A)\",\"A\",IF('General Information'!E5=\"Final (F)\",\"F\",IF('General Information'!E5=\"Annual and Final (F)\",\"F\",IF('General Information'!E5=\"Relinquishment (R)\",\"R\",\"\"))))","v":""}]
["H0002","Version",4.5999999999999996]
["H0003","Date_Generated"]
["H0004","Reporting_period_end_date"]
["H0005","State","NSW"]
["H0100","Tenement_no"]
["H0101","Tenement_holder"]
["H0102","Project_name"]
["H0106","Tenement_Operator"]
["H0200","Start_date_of_data_acquisition"]
["H0201","End_date_of_data_acquisition"]
["H0202","Template_format","SG4"]
["H0203","Number_of_data_records"]
["H0300","Related_data_filenames"]
["H0305","SurfGeochem_data_file"]
["H0307","Lithology_code_file"]
["H0500","Feature_located","Sample location"]
["H0501","Geodetic_datum",{"$f":"VLOOKUP('General Information'!$E$253,Lookups!$C$2:$I$21,2,FALSE)","v":{"$error":"#N/A"}}]
["H0502","Vertical_datum","AHD"]
["H0503","Projection",{"$f":"VLOOKUP('General Information'!$E$253,Lookups!$C$2:$I$21,4,FALSE)","v":{"$error":"#N/A"}}]
["H0530","Coordinate_system",{"$f":"VLOOKUP('General Information'!$E$253,Lookups!$C$2:$I$21,3,FALSE)","v":{"$error":"#N/A"}}]
["H0531","Projection_zone",{"$f":"IF(VLOOKUP('General Information'!$E$253,Lookups!$C$2:$I$21,7,FALSE)=0,\"\",VLOOKUP('General Information'!$E$253,Lookups!$C$2:$I$21,7,FALSE))","v":{"$error":"#N/A"}}]
["H0532","Surface_Location_Surveying_instrument"]
["H0533","Surface_Location_Surveying_company"]
["H0600","Sample_code"]
["H0601","Sample_type",{"$f":"IF(C25=\"\", \"\", IF(ISNUMBER(MATCH(C25, 'GSNSW Codes'!$B$46:$B$56, 0)), VLOOKUP(C25, 'GSNSW Codes'!$B$46:$C$56, 2, FALSE), \"\"))","v":""},{"$f":"IF(D25=\"\", \"\", IF(ISNUMBER(MATCH(D25, 'GSNSW Codes'!$B$46:$B$56, 0)), VLOOKUP(D25, 'GSNSW Codes'!$B$46:$C$56, 2, FALSE), \"\"))","v":""},{"$f":"IF(E25=\"\", \"\", IF(ISNUMBER(MATCH(E25, 'GSNSW Codes'!$B$46:$B$56, 0)), VLOOKUP(E25, 'GSNSW Codes'!$B$46:$C$56, 2, FALSE), \"\"))","v":""},{"$f":"IF(F25=\"\", \"\", IF(ISNUMBER(MATCH(F25, 'GSNSW Codes'!$B$46:$B$56, 0)), VLOOKUP(F25, 'GSNSW Codes'!$B$46:$C$56, 2, FALSE), \"\"))","v":""},{"$f":"IF(G25=\"\", \"\", IF(ISNUMBER(MATCH(G25, 'GSNSW Codes'!$B$46:$B$56, 0)), VLOOKUP(G25, 'GSNSW Codes'!$B$46:$C$56, 2, FALSE), \"\"))","v":""},{"$f":"IF(H25=\"\", \"\", IF(ISNUMBER(MATCH(H25, 'GSNSW Codes'!$B$46:$B$56, 0)), VLOOKUP(H25, 'GSNSW Codes'!$B$46:$C$56, 2, FALSE), \"\"))","v":""},{"$f":"IF(I25=\"\", \"\", IF(ISNUMBER(MATCH(I25, 'GSNSW Codes'!$B$46:$B$56, 0)), VLOOKUP(I25, 'GSNSW Codes'!$B$46:$C$56, 2, FALSE), \"\"))","v":""},{"$f":"IF(J25=\"\", \"\", IF(ISNUMBER(MATCH(J25, 'GSNSW Codes'!$B$46:$B$56, 0)), VLOOKUP(J25, 'GSNSW Codes'!$B$46:$C$56, 2, FALSE), \"\"))","v":""},{"$f":"IF(K25=\"\", \"\", IF(ISNUMBER(MATCH(K25, 'GSNSW Codes'!$B$46:$B$56, 0)), VLOOKUP(K25, 'GSNSW Codes'!$B$46:$C$56, 2, FALSE), \"\"))","v":""},{"$f":"IF(L25=\"\", \"\", IF(ISNUMBER(MATCH(L25, 'GSNSW Codes'!$B$46:$B$56, 0)), VLOOKUP(L25, 'GSNSW Codes'!$B$46:$C$56, 2, FALSE), \"\"))","v":""},{"$f":"IF(M25=\"\", \"\", IF(ISNUMBER(MATCH(M25, 'GSNSW Codes'!$B$46:$B$56, 0)), VLOOKUP(M25, 'GSNSW Codes'!$B$46:$C$56, 2, FALSE), \"\"))","v":""},{"$f":"IF(N25=\"\", \"\", IF(ISNUMBER(MATCH(N25, 'GSNSW Codes'!$B$46:$B$56, 0)), VLOOKUP(N25, 'GSNSW Codes'!$B$46:$C$56, 2, FALSE), \"\"))","v":""},{"$f":"IF(O25=\"\", \"\", IF(ISNUMBER(MATCH(O25, 'GSNSW Codes'!$B$46:$B$56, 0)), VLOOKUP(O25, 'GSNSW Codes'!$B$46:$C$56, 2, FALSE), \"\"))","v":""},{"$f":"IF(P25=\"\", \"\", IF(ISNUMBER(MATCH(P25, 'GSNSW Codes'!$B$46:$B$56, 0)), VLOOKUP(P25, 'GSNSW Codes'!$B$46:$C$56, 2, FALSE), \"\"))","v":""},{"$f":"IF(Q25=\"\", \"\", IF(ISNUMBER(MATCH(Q25, 'GSNSW Codes'!$B$46:$B$56, 0)), VLOOKUP(Q25, 'GSNSW Codes'!$B$46:$C$56, 2, FALSE), \"\"))","v":""}]
["H0602","Sample_Description"]
["H0700","Sample_preparation_code"]
["H0701","Sample_preparation_details"]
["H0702","Job_Number"]
["H0800","Assay_code"]
["H0801","Assay_description"]
["H0802","Assay_company",{"$f":"IF(OR('General Information'!$L$261=\"\", ISERROR(VLOOKUP('General Information'!$L$261, Lookups!$AD$2:$AE$200, 2, FALSE))), \"\", VLOOKUP('General Information'!$L$261, Lookups!$AD$2:$AE$200, 2, FALSE))","v":""},{"$f":"IF(OR('General Information'!$L$262=\"\", ISERROR(VLOOKUP('General Information'!$L$262, Lookups!$AD$2:$AE$200, 2, FALSE))), \"\", VLOOKUP('General Information'!$L$262, Lookups!$AD$2:$AE$200, 2, FALSE))","v":""},{"$f":"IF(OR('General Information'!$L$263=\"\", ISERROR(VLOOKUP('General Information'!$L$263, Lookups!$AD$2:$AE$200, 2, FALSE))), \"\", VLOOKUP('General Information'!$L$263, Lookups!$AD$2:$AE$200, 2, FALSE))","v":""},{"$f":"IF(OR('General Information'!$L$264=\"\", ISERROR(VLOOKUP('General Information'!$L$264, Lookups!$AD$2:$AE$200, 2, FALSE))), \"\", VLOOKUP('General Information'!$L$264, Lookups!$AD$2:$AE$200, 2, FALSE))","v":""},{"$f":"IF(OR('General Information'!$L$265=\"\", ISERROR(VLOOKUP('General Information'!$L$265, Lookups!$AD$2:$AE$200, 2, FALSE))), \"\", VLOOKUP('General Information'!$L$265, Lookups!$AD$2:$AE$200, 2, FALSE))","v":""},{"$f":"IF(OR('General Information'!$L$266=\"\", ISERROR(VLOOKUP('General Information'!$L$266, Lookups!$AD$2:$AE$200, 2, FALSE))), \"\", VLOOKUP('General Information'!$L$266, Lookups!$AD$2:$AE$200, 2, FALSE))","v":""},{"$f":"IF(OR('General Information'!$L$267=\"\", ISERROR(VLOOKUP('General Information'!$L$267, Lookups!$AD$2:$AE$200, 2, FALSE))), \"\", VLOOKUP('General Information'!$L$267, Lookups!$AD$2:$AE$200, 2, FALSE))","v":""},{"$f":"IF(OR('General Information'!$L$268=\"\", ISERROR(VLOOKUP('General Information'!$L$268, Lookups!$AD$2:$AE$200, 2, FALSE))), \"\", VLOOKUP('General Information'!$L$268, Lookups!$AD$2:$AE$200, 2, FALSE))","v":""},{"$f":"IF(OR('General Information'!$L$269=\"\", ISERROR(VLOOKUP('General Information'!$L$269, Lookups!$AD$2:$AE$200, 2, FALSE))), \"\", VLOOKUP('General Information'!$L$269, Lookups!$AD$2:$AE$200, 2, FALSE))","v":""},{"$f":"IF(OR('General Information'!$L$270=\"\", ISERROR(VLOOKUP('General Information'!$L$270, Lookups!$AD$2:$AE$200, 2, FALSE))), \"\", VLOOKUP('General Information'!$L$270, Lookups!$AD$2:$AE$200, 2, FALSE))","v":""},{"$f":"IF(OR('General Information'!$L$271=\"\", ISERROR(VLOOKUP('General Information'!$L$271, Lookups!$AD$2:$AE$200, 2, FALSE))), \"\", VLOOKUP('General Information'!$L$271, Lookups!$AD$2:$AE$200, 2, FALSE))","v":""},{"$f":"IF(OR('General Information'!$L$272=\"\", ISERROR(VLOOKUP('General Information'!$L$272, Lookups!$AD$2:$AE$200, 2, FALSE))), \"\", VLOOKUP('General Information'!$L$272, Lookups!$AD$2:$AE$200, 2, FALSE))","v":""},{"$f":"IF(OR('General Information'!$L$273=\"\", ISERROR(VLOOKUP('General Information'!$L$273, Lookups!$AD$2:$AE$200, 2, FALSE))), \"\", VLOOKUP('General Information'!$L$273, Lookups!$AD$2:$AE$200, 2, FALSE))","v":""},{"$f":"IF(OR('General Information'!$L$274=\"\", ISERROR(VLOOKUP('General Information'!$L$274, Lookups!$AD$2:$AE$200, 2, FALSE))), \"\", VLOOKUP('General Information'!$L$274, Lookups!$AD$2:$AE$200, 2, FALSE))","v":""},{"$f":"IF(OR('General Information'!$L$275=\"\", ISERROR(VLOOKUP('General Information'!$L$275, Lookups!$AD$2:$AE$200, 2, FALSE))), \"\", VLOOKUP('General Information'!$L$275, Lookups!$AD$2:$AE$200, 2, FALSE))","v":""}]
["H0900","Remarks"]
["H1000","Sample_ID","Sample_Code","Lithology","Lith_description",null,null,"Elevation","Prospect","Assay_Job_No","Sample_Date","Comments"]
["H1001","Unit of Measure",null,null,null,"metres","metres","metres"]
["H1002","Assay Code"]
["H1003","Lower_detection_limits"]
["H1004","Accuracy"]
["H1005","Upper_detection_limits"]
["H1007","Assay_company_code"]

{"sheet":"SG4_PXRFPrint","index":31,"n_rows":42,"n_cols":17,"rows_kept":42,"cut":false,"hidden":true,"merged":[]}
["H0001","Report_Type",{"$f":"IF('General Information'!E5=\"Annual (A)\",\"A\",IF('General Information'!E5=\"Final (F)\",\"F\",IF('General Information'!E5=\"Annual and Final (F)\",\"F\",IF('General Information'!E5=\"Relinquishment (R)\",\"R\",\"\"))))","v":""}]
["H0002","Version",4.5999999999999996]
["H0003","Date_Generated"]
["H0004","Reporting_Period_end_date"]
["H0005","State","NSW"]
["H0100","Tenement_no"]
["H0101","Tenement_holder"]
["H0102","Project_name"]
["H0106","Tenement_operator"]
["H0200","Start_date_of_data_acquisition"]
["H0201","End_date_of_data_acquisition"]
["H0202","Data_format","SG4_PXRF"]
["H0203","Number_of_data_records"]
["H0204","Date_of metadata_update"]
["H0300","Related_data_filenames"]
["H0305","SurfGeochem_data_file"]
["H0500","Feature_located","Surface Sample Point"]
["H0501","Geodetic_datum",{"$f":"VLOOKUP('General Information'!$E$303,Lookups!$C$2:$I$21,2,FALSE)","v":{"$error":"#N/A"}}]
["H0502","Vertical_datum","AHD"]
["H0503","Projection",{"$f":"VLOOKUP('General Information'!$E$303,Lookups!$C$2:$I$21,4,FALSE)","v":{"$error":"#N/A"}}]
["H0530","Coordinate_system",{"$f":"VLOOKUP('General Information'!$E$303,Lookups!$C$2:$I$21,3,FALSE)","v":{"$error":"#N/A"}}]
["H0531","Projection_zone",{"$f":"IF(VLOOKUP('General Information'!$E$303,Lookups!$C$2:$I$21,7,FALSE)=0,\"\",VLOOKUP('General Information'!$E$303,Lookups!$C$2:$I$21,7,FALSE))","v":{"$error":"#N/A"}}]
["H0532","Surface_location_Survey_Instrument"]
["H0533","Surface_Location_Survey_Company"]
["H0600","Sample_Code"]
["H0601","Sample_Type",{"$f":"IF(C25=\"\", \"\", IF(ISNUMBER(MATCH(C25, 'GSNSW Codes'!$B$46:$B$56, 0)), VLOOKUP(C25, 'GSNSW Codes'!$B$46:$C$56, 2, FALSE), \"\"))","v":""},{"$f":"IF(D25=\"\", \"\", IF(ISNUMBER(MATCH(D25, 'GSNSW Codes'!$B$46:$B$56, 0)), VLOOKUP(D25, 'GSNSW Codes'!$B$46:$C$56, 2, FALSE), \"\"))","v":""},{"$f":"IF(E25=\"\", \"\", IF(ISNUMBER(MATCH(E25, 'GSNSW Codes'!$B$46:$B$56, 0)), VLOOKUP(E25, 'GSNSW Codes'!$B$46:$C$56, 2, FALSE), \"\"))","v":""},{"$f":"IF(F25=\"\", \"\", IF(ISNUMBER(MATCH(F25, 'GSNSW Codes'!$B$46:$B$56, 0)), VLOOKUP(F25, 'GSNSW Codes'!$B$46:$C$56, 2, FALSE), \"\"))","v":""},{"$f":"IF(G25=\"\", \"\", IF(ISNUMBER(MATCH(G25, 'GSNSW Codes'!$B$46:$B$56, 0)), VLOOKUP(G25, 'GSNSW Codes'!$B$46:$C$56, 2, FALSE), \"\"))","v":""},{"$f":"IF(H25=\"\", \"\", IF(ISNUMBER(MATCH(H25, 'GSNSW Codes'!$B$46:$B$56, 0)), VLOOKUP(H25, 'GSNSW Codes'!$B$46:$C$56, 2, FALSE), \"\"))","v":""},{"$f":"IF(I25=\"\", \"\", IF(ISNUMBER(MATCH(I25, 'GSNSW Codes'!$B$46:$B$56, 0)), VLOOKUP(I25, 'GSNSW Codes'!$B$46:$C$56, 2, FALSE), \"\"))","v":""},{"$f":"IF(J25=\"\", \"\", IF(ISNUMBER(MATCH(J25, 'GSNSW Codes'!$B$46:$B$56, 0)), VLOOKUP(J25, 'GSNSW Codes'!$B$46:$C$56, 2, FALSE), \"\"))","v":""},{"$f":"IF(K25=\"\", \"\", IF(ISNUMBER(MATCH(K25, 'GSNSW Codes'!$B$46:$B$56, 0)), VLOOKUP(K25, 'GSNSW Codes'!$B$46:$C$56, 2, FALSE), \"\"))","v":""},{"$f":"IF(L25=\"\", \"\", IF(ISNUMBER(MATCH(L25, 'GSNSW Codes'!$B$46:$B$56, 0)), VLOOKUP(L25, 'GSNSW Codes'!$B$46:$C$56, 2, FALSE), \"\"))","v":""},{"$f":"IF(M25=\"\", \"\", IF(ISNUMBER(MATCH(M25, 'GSNSW Codes'!$B$46:$B$56, 0)), VLOOKUP(M25, 'GSNSW Codes'!$B$46:$C$56, 2, FALSE), \"\"))","v":""},{"$f":"IF(N25=\"\", \"\", IF(ISNUMBER(MATCH(N25, 'GSNSW Codes'!$B$46:$B$56, 0)), VLOOKUP(N25, 'GSNSW Codes'!$B$46:$C$56, 2, FALSE), \"\"))","v":""},{"$f":"IF(O25=\"\", \"\", IF(ISNUMBER(MATCH(O25, 'GSNSW Codes'!$B$46:$B$56, 0)), VLOOKUP(O25, 'GSNSW Codes'!$B$46:$C$56, 2, FALSE), \"\"))","v":""},{"$f":"IF(P25=\"\", \"\", IF(ISNUMBER(MATCH(P25, 'GSNSW Codes'!$B$46:$B$56, 0)), VLOOKUP(P25, 'GSNSW Codes'!$B$46:$C$56, 2, FALSE), \"\"))","v":""},{"$f":"IF(Q25=\"\", \"\", IF(ISNUMBER(MATCH(Q25, 'GSNSW Codes'!$B$46:$B$56, 0)), VLOOKUP(Q25, 'GSNSW Codes'!$B$46:$C$56, 2, FALSE), \"\"))","v":""}]
["H0602","Sample_Description"]
["H0700","Sample_Preparation_Code"]
["H0701","Sample_Preparation_Details"]
["H0702","Assay_Job_No"]
["H0800","Assay_code"]
["H0801","Assay_description"]
["H0802","Assay_company",{"$f":"IF(OR('General Information'!$L$310=\"\", ISERROR(VLOOKUP('General Information'!$L$310, Lookups!$AD$2:$AE$200, 2, FALSE))), \"\", VLOOKUP('General Information'!$L$310, Lookups!$AD$2:$AE$200, 2, FALSE))","v":"COMPSITE"},{"$f":"IF(OR('General Information'!$L$311=\"\", ISERROR(VLOOKUP('General Information'!$L$311, Lookups!$AD$2:$AE$200, 2, FALSE))), \"\", VLOOKUP('General Information'!$L$311, Lookups!$AD$2:$AE$200, 2, FALSE))","v":"COMPSITE"},{"$f":"IF(OR('General Information'!$L$312=\"\", ISERROR(VLOOKUP('General Information'!$L$312, Lookups!$AD$2:$AE$200, 2, FALSE))), \"\", VLOOKUP('General Information'!$L$312, Lookups!$AD$2:$AE$200, 2, FALSE))","v":""},{"$f":"IF(OR('General Information'!$L$313=\"\", ISERROR(VLOOKUP('General Information'!$L$313, Lookups!$AD$2:$AE$200, 2, FALSE))), \"\", VLOOKUP('General Information'!$L$313, Lookups!$AD$2:$AE$200, 2, FALSE))","v":""},{"$f":"IF(OR('General Information'!$L$314=\"\", ISERROR(VLOOKUP('General Information'!$L$314, Lookups!$AD$2:$AE$200, 2, FALSE))), \"\", VLOOKUP('General Information'!$L$314, Lookups!$AD$2:$AE$200, 2, FALSE))","v":""},{"$f":"IF(OR('General Information'!$L$315=\"\", ISERROR(VLOOKUP('General Information'!$L$315, Lookups!$AD$2:$AE$200, 2, FALSE))), \"\", VLOOKUP('General Information'!$L$315, Lookups!$AD$2:$AE$200, 2, FALSE))","v":""},{"$f":"IF(OR('General Information'!$L$316=\"\", ISERROR(VLOOKUP('General Information'!$L$316, Lookups!$AD$2:$AE$200, 2, FALSE))), \"\", VLOOKUP('General Information'!$L$316, Lookups!$AD$2:$AE$200, 2, FALSE))","v":""},{"$f":"IF(OR('General Information'!$L$317=\"\", ISERROR(VLOOKUP('General Information'!$L$317, Lookups!$AD$2:$AE$200, 2, FALSE))), \"\", VLOOKUP('General Information'!$L$317, Lookups!$AD$2:$AE$200, 2, FALSE))","v":""},{"$f":"IF(OR('General Information'!$L$318=\"\", ISERROR(VLOOKUP('General Information'!$L$318, Lookups!$AD$2:$AE$200, 2, FALSE))), \"\", VLOOKUP('General Information'!$L$318, Lookups!$AD$2:$AE$200, 2, FALSE))","v":""},{"$f":"IF(OR('General Information'!$L$319=\"\", ISERROR(VLOOKUP('General Information'!$L$319, Lookups!$AD$2:$AE$200, 2, FALSE))), \"\", VLOOKUP('General Information'!$L$319, Lookups!$AD$2:$AE$200, 2, FALSE))","v":""},{"$f":"IF(OR('General Information'!$L$320=\"\", ISERROR(VLOOKUP('General Information'!$L$320, Lookups!$AD$2:$AE$200, 2, FALSE))), \"\", VLOOKUP('General Information'!$L$320, Lookups!$AD$2:$AE$200, 2, FALSE))","v":""},{"$f":"IF(OR('General Information'!$L$321=\"\", ISERROR(VLOOKUP('General Information'!$L$321, Lookups!$AD$2:$AE$200, 2, FALSE))), \"\", VLOOKUP('General Information'!$L$321, Lookups!$AD$2:$AE$200, 2, FALSE))","v":""},{"$f":"IF(OR('General Information'!$L$322=\"\", ISERROR(VLOOKUP('General Information'!$L$322, Lookups!$AD$2:$AE$200, 2, FALSE))), \"\", VLOOKUP('General Information'!$L$322, Lookups!$AD$2:$AE$200, 2, FALSE))","v":""},{"$f":"IF(OR('General Information'!$L323=\"\", ISERROR(VLOOKUP('General Information'!$L323, Lookups!$AD$2:$AE$200, 2, FALSE))), \"\", VLOOKUP('General Information'!$L323, Lookups!$AD$2:$AE$200, 2, FALSE))","v":""},{"$f":"IF(OR('General Information'!$L$324=\"\", ISERROR(VLOOKUP('General Information'!$L$324, Lookups!$AD$2:$AE$200, 2, FALSE))), \"\", VLOOKUP('General Information'!$L$324, Lookups!$AD$2:$AE$200, 2, FALSE))","v":""}]
["H0806","XRF_Instrument_Types"]
["H0807","XRF_Instruments_Serial No"]
["H0900","Remarks"]
["H1000","Sample_ID",null,null,"Reading No","Sequence","Mode","Time_elapsed","Duration/ Beam Time","Barrier","Sample_Code","Assay_Job_No","Sample_Date","Comments"]
["H1001","Unit of Measure","metres","metres",null,null,null,"sec","sec"]
["H1002","Assay Code"]
["H1003","Lower_detection_limits"]
["H1004","Accuracy"]
["H1007","Assay_Company_ID"]

{"sheet":"DG4_PXRFPrint","index":32,"n_rows":38,"n_cols":17,"rows_kept":38,"cut":false,"hidden":true,"merged":[]}
["H0001","Report_Type",{"$f":"IF('General Information'!E5=\"Annual (A)\",\"A\",IF('General Information'!E5=\"Final (F)\",\"F\",IF('General Information'!E5=\"Annual and Final (F)\",\"F\",IF('General Information'!E5=\"Relinquishment (R)\",\"R\",\"\"))))","v":""}]
["H0002","Version",4.5999999999999996]
["H0003","Date_Generated"]
["H0004","Reporting_Period_end_date"]
["H0005","State","NSW"]
["H0100","Tenement_no"]
["H0101","Tenement_holder"]
["H0102","Project_name"]
["H0106","Tenement_operator"]
["H0200","Start_date_of_data_acquisition"]
["H0201","End_date_of_data_acquisition"]
["H0202","Data_format","DG4_PXRF"]
["H0203","Number_of_data_records"]
["H0204","Date_of metadata_update"]
["H0300","Related_data_filenames"]
["H0301","Location_data_file"]
["H0302","Downhole_survey_data_file"]
["H0303","Downhole_geochem_data_file"]
["H0304","Lithology_code_file"]
["H0307","Downhole_lithology_data_file"]
["H0600","Sample_Code"]
["H0601","Sample_Type",{"$f":"IF(C21=\"\", \"\", IF(ISNUMBER(MATCH(C21, 'GSNSW Codes'!$B$33:$B$42, 0)), VLOOKUP(C21, 'GSNSW Codes'!$B$33:$C$42, 2, FALSE), \"\"))","v":""},{"$f":"IF(D21=\"\", \"\", IF(ISNUMBER(MATCH(D21, 'GSNSW Codes'!$B$33:$B$42, 0)), VLOOKUP(D21, 'GSNSW Codes'!$B$33:$C$42, 2, FALSE), \"\"))","v":""},{"$f":"IF(E21=\"\", \"\", IF(ISNUMBER(MATCH(E21, 'GSNSW Codes'!$B$33:$B$42, 0)), VLOOKUP(E21, 'GSNSW Codes'!$B$33:$C$42, 2, FALSE), \"\"))","v":""},{"$f":"IF(F21=\"\", \"\", IF(ISNUMBER(MATCH(F21, 'GSNSW Codes'!$B$33:$B$42, 0)), VLOOKUP(F21, 'GSNSW Codes'!$B$33:$C$42, 2, FALSE), \"\"))","v":""},{"$f":"IF(G21=\"\", \"\", IF(ISNUMBER(MATCH(G21, 'GSNSW Codes'!$B$33:$B$42, 0)), VLOOKUP(G21, 'GSNSW Codes'!$B$33:$C$42, 2, FALSE), \"\"))","v":""},{"$f":"IF(H21=\"\", \"\", IF(ISNUMBER(MATCH(H21, 'GSNSW Codes'!$B$33:$B$42, 0)), VLOOKUP(H21, 'GSNSW Codes'!$B$33:$C$42, 2, FALSE), \"\"))","v":""},{"$f":"IF(I21=\"\", \"\", IF(ISNUMBER(MATCH(I21, 'GSNSW Codes'!$B$33:$B$42, 0)), VLOOKUP(I21, 'GSNSW Codes'!$B$33:$C$42, 2, FALSE), \"\"))","v":""},{"$f":"IF(J21=\"\", \"\", IF(ISNUMBER(MATCH(J21, 'GSNSW Codes'!$B$33:$B$42, 0)), VLOOKUP(J21, 'GSNSW Codes'!$B$33:$C$42, 2, FALSE), \"\"))","v":""},{"$f":"IF(K21=\"\", \"\", IF(ISNUMBER(MATCH(K21, 'GSNSW Codes'!$B$33:$B$42, 0)), VLOOKUP(K21, 'GSNSW Codes'!$B$33:$C$42, 2, FALSE), \"\"))","v":""},{"$f":"IF(L21=\"\", \"\", IF(ISNUMBER(MATCH(L21, 'GSNSW Codes'!$B$33:$B$42, 0)), VLOOKUP(L21, 'GSNSW Codes'!$B$33:$C$42, 2, FALSE), \"\"))","v":""},{"$f":"IF(M21=\"\", \"\", IF(ISNUMBER(MATCH(M21, 'GSNSW Codes'!$B$33:$B$42, 0)), VLOOKUP(M21, 'GSNSW Codes'!$B$33:$C$42, 2, FALSE), \"\"))","v":""},{"$f":"IF(N21=\"\", \"\", IF(ISNUMBER(MATCH(N21, 'GSNSW Codes'!$B$33:$B$42, 0)), VLOOKUP(N21, 'GSNSW Codes'!$B$33:$C$42, 2, FALSE), \"\"))","v":""},{"$f":"IF(O21=\"\", \"\", IF(ISNUMBER(MATCH(O21, 'GSNSW Codes'!$B$33:$B$42, 0)), VLOOKUP(O21, 'GSNSW Codes'!$B$33:$C$42, 2, FALSE), \"\"))","v":""},{"$f":"IF(P21=\"\", \"\", IF(ISNUMBER(MATCH(P21, 'GSNSW Codes'!$B$33:$B$42, 0)), VLOOKUP(P21, 'GSNSW Codes'!$B$33:$C$42, 2, FALSE), \"\"))","v":""},{"$f":"IF(Q21=\"\", \"\", IF(ISNUMBER(MATCH(Q21, 'GSNSW Codes'!$B$33:$B$42, 0)), VLOOKUP(Q21, 'GSNSW Codes'!$B$33:$C$42, 2, FALSE), \"\"))","v":""}]
["H0602","Sample_Description"]
["H0700","Sample_Preparation_Code"]
["H0701","Sample_Preparation_Details"]
["H0702","Assay_Job_No"]
["H0800","Assay_code"]
["H0801","Assay_description"]
["H0802","Assay_company",{"$f":"IF(OR('General Information'!$L$360=\"\", ISERROR(VLOOKUP('General Information'!$L$360, Lookups!$AD$2:$AE$200, 2, FALSE))), \"\", VLOOKUP('General Information'!$L$360, Lookups!$AD$2:$AE$200, 2, FALSE))","v":"COMPSITE"},{"$f":"IF(OR('General Information'!$L$361=\"\", ISERROR(VLOOKUP('General Information'!$L$361, Lookups!$AD$2:$AE$200, 2, FALSE))), \"\", VLOOKUP('General Information'!$L$361, Lookups!$AD$2:$AE$200, 2, FALSE))","v":"COMPSITE"},{"$f":"IF(OR('General Information'!$L$362=\"\", ISERROR(VLOOKUP('General Information'!$L$362, Lookups!$AD$2:$AE$200, 2, FALSE))), \"\", VLOOKUP('General Information'!$L$362, Lookups!$AD$2:$AE$200, 2, FALSE))","v":""},{"$f":"IF(OR('General Information'!$L$363=\"\", ISERROR(VLOOKUP('General Information'!$L$363, Lookups!$AD$2:$AE$200, 2, FALSE))), \"\", VLOOKUP('General Information'!$L$363, Lookups!$AD$2:$AE$200, 2, FALSE))","v":""},{"$f":"IF(OR('General Information'!$L$364=\"\", ISERROR(VLOOKUP('General Information'!$L$364, Lookups!$AD$2:$AE$200, 2, FALSE))), \"\", VLOOKUP('General Information'!$L$364, Lookups!$AD$2:$AE$200, 2, FALSE))","v":""},{"$f":"IF(OR('General Information'!$L$365=\"\", ISERROR(VLOOKUP('General Information'!$L$365, Lookups!$AD$2:$AE$200, 2, FALSE))), \"\", VLOOKUP('General Information'!$L$365, Lookups!$AD$2:$AE$200, 2, FALSE))","v":""},{"$f":"IF(OR('General Information'!$L$366=\"\", ISERROR(VLOOKUP('General Information'!$L$366, Lookups!$AD$2:$AE$200, 2, FALSE))), \"\", VLOOKUP('General Information'!$L$366, Lookups!$AD$2:$AE$200, 2, FALSE))","v":""},{"$f":"IF(OR('General Information'!$L$367=\"\", ISERROR(VLOOKUP('General Information'!$L$367, Lookups!$AD$2:$AE$200, 2, FALSE))), \"\", VLOOKUP('General Information'!$L$367, Lookups!$AD$2:$AE$200, 2, FALSE))","v":""},{"$f":"IF(OR('General Information'!$L$368=\"\", ISERROR(VLOOKUP('General Information'!$L$368, Lookups!$AD$2:$AE$200, 2, FALSE))), \"\", VLOOKUP('General Information'!$L$368, Lookups!$AD$2:$AE$200, 2, FALSE))","v":""},{"$f":"IF(OR('General Information'!$L$369=\"\", ISERROR(VLOOKUP('General Information'!$L$369, Lookups!$AD$2:$AE$200, 2, FALSE))), \"\", VLOOKUP('General Information'!$L$369, Lookups!$AD$2:$AE$200, 2, FALSE))","v":""},{"$f":"IF(OR('General Information'!$L$370=\"\", ISERROR(VLOOKUP('General Information'!$L$370, Lookups!$AD$2:$AE$200, 2, FALSE))), \"\", VLOOKUP('General Information'!$L$370, Lookups!$AD$2:$AE$200, 2, FALSE))","v":""},{"$f":"IF(OR('General Information'!$L$371=\"\", ISERROR(VLOOKUP('General Information'!$L$371, Lookups!$AD$2:$AE$200, 2, FALSE))), \"\", VLOOKUP('General Information'!$L$371, Lookups!$AD$2:$AE$200, 2, FALSE))","v":""},{"$f":"IF(OR('General Information'!$L$372=\"\", ISERROR(VLOOKUP('General Information'!$L$372, Lookups!$AD$2:$AE$200, 2, FALSE))), \"\", VLOOKUP('General Information'!$L$372, Lookups!$AD$2:$AE$200, 2, FALSE))","v":""},{"$f":"IF(OR('General Information'!$L$373=\"\", ISERROR(VLOOKUP('General Information'!$L$373, Lookups!$AD$2:$AE$200, 2, FALSE))), \"\", VLOOKUP('General Information'!$L$373, Lookups!$AD$2:$AE$200, 2, FALSE))","v":""},{"$f":"IF(OR('General Information'!$L$374=\"\", ISERROR(VLOOKUP('General Information'!$L$374, Lookups!$AD$2:$AE$200, 2, FALSE))), \"\", VLOOKUP('General Information'!$L$374, Lookups!$AD$2:$AE$200, 2, FALSE))","v":""}]
["H0806","XRF_Instrument_Types"]
["H0807","XRF_Instruments_Serial No"]
["H0900","Remarks"]
["H1000","Hole_ID","Sample ID","From","To","Reading No","Sequence","Mode","Time_elapsed","Duration/ Beam Time","Barrier","Sample code","Assay_Job_No","Sample_Date","Comments"]
["H1001","Unit of Measure",null,"Metres","Metres",null,null,null,"sec","sec"]
["H1002","Assay Code"]
["H1003","Lower_detection_limits"]
["H1004","Accuracy"]
["H1007","Assay_Company_ID"]